Workbook

Sheet Outubro
E1: =CHOOSE(MONTH($W$117),"Janeiro","Fevereiro","Março","Abril","Maio","Junho","Julho","Agosto","Setembro","Outubro","Novembro","Dezembro") -> Outubro
B5: Empregado : | D5: Alexandre José de Souza Silva | I5: Setor : | O5: Unidade : | W5: JORNADA CONTRATUAL
B6: Data | C6: Dia Semana | D6: Folgas | E6: Entrada | F6: Saída | G6: Entrada | H6: Saída | I6: Entrada | J6: Saída | K6: Horas Diurnas | L6: H. Not. s/ red. | M6: Hora Ficta | N6: Adicional Noturno | O6: H. Trab. | P6: H. Normais | Q6: Ausências In-justificadas | R6: Compen-sadas | S6: H. Extras | T6: HE 100% | Z6: CARTÃO PONTO ESPELHO
B7: Saldo anterior | W7: Dia da Semana | X7: Jornada | Z7: Entrada | AA7: Saída | AB7: Entrada | AC7: Saída | AD7: Entrada | AE7: Saída
A8: =IF(B8="","",IF(C8<>"feriado",WEEKDAY(B8),8)) -> 1 | B8: =inicio -> 2023-10-01 | C8: =IF(B8="","",IF(COUNTIF(fer,B8)>0,"feriado",B8)) -> 2023-10-01 | K8: =IF(B8="","",ROUND(O8-N8,5)) -> 00:00:00 | L8: =IF(B8="","",IF(AND(E8="",F8=""),0,MAX(ININOT,MIN(FIMNOT+1,AA8+(Z8>AA8)))-MAX(ININOT,Z8)+(MIN(FIMNOT,AA8+(Z8>AA8))-MIN(FIMNOT,Z8)))+IF(AND(G8="",H8=""),0,MAX(ININOT,MIN(FIMNOT+1,AC8+(AB8>AC8)))-MAX(ININOT,AB8)+(MIN(FIMNOT,AC8+(AB8>AC8))-MIN(FIMNOT,AB8)))+IF(AND(I8="",J8=""),0,MAX(ININOT,MIN(FIMNOT+1,AE8+(AD8>AE8)))-MAX(ININOT,AD8)+(MIN(FIMNOT,AE8+(AD8>AE8))-MIN(FIMNOT,AD8)))) -> 00:00:00 | M8: =IF(B8="","",(L8/7*8)-L8) -> 00:00:00 | N8: =IF(B8="","",L8+M8) -> 00:00:00 | O8: =IF(B8="","",MOD((AA8-Z8)+(AC8-AB8)+(AE8-AD8),1)+M8) -> 00:00:00 | P8: =IF(B8="","",IF(D8="F",$X$16,VLOOKUP(A8,jornada,3))) -> 00:00:00 | Q8: =IF(B8="","",IF(AND(D8="A",P8>O8),P8-O8,"")) ->  | R8: =IF(B8="","",IF(AND(O8>0,D8="F"),"",IF(D8="A","",IF(O8<P8,P8-O8,"")))) ->  | S8: =IF(B8="","",IF(AND(WEEKDAY(B8,1)=7,P8=0,D8<>"F"),MAX(0,O8-P8),IF(P8=0,0,MAX(0,O8-P8)))) -> 00:00:00 | T8: =IF(B8="","",IF(AND(WEEKDAY(B8,1)=7,P8=0,D8<>"F"),0,IF(P8=0,O8,0))) -> 00:00:00 | V8: 1 | W8: domingo | X8: 00:00:00 | Z8: =IF(B8="","",IF($E8="",0,TIME(INT(E8/100),MOD(E8,100),0))) -> 00:00:00 | AA8: =IF(B8="","",IF($F8="",0,TIME(INT(F8/100),MOD(F8,100),0))) -> 00:00:00 | AB8: =IF(B8="","",IF($G8="",0,TIME(INT(G8/100),MOD(G8,100),0))) -> 00:00:00 | AC8: =IF(B8="","",IF($H8="",0,TIME(INT(H8/100),MOD(H8,100),0))) -> 00:00:00 | AD8: =IF(B8="","",IF($I8="",0,TIME(INT(I8/100),MOD(I8,100),0))) -> 00:00:00 | AE8: =IF(B8="","",IF($J8="",0,TIME(INT(J8/100),MOD(J8,100),0))) -> 00:00:00
A9: =IF(B9="","",IF(C9<>"feriado",WEEKDAY(B9),8)) -> 2 | B9: =B8+1 -> 2023-10-02 | C9: =IF(B9="","",IF(COUNTIF(fer,B9)>0,"feriado",B9)) -> 2023-10-02 | E9: 08:00 | F9: 12:00 | G9: 13:00 | H9: 16:00 | I9: 16:30 | J9: 19:30 | K9: =IF(B9="","",ROUND(O9-N9,5)) -> 10:00:00.288 | L9: 00:00:00 | M9: =IF(B9="","",(L9/7*8)-L9) -> 00:00:00 | N9: =IF(B9="","",L9+M9) -> 00:00:00 | O9: =IF(B9="","",MOD((AA9-Z9)+(AC9-AB9)+(AE9-AD9),1)+M9) -> 10:00:00 | P9: 08:48:00 | Q9: =IF(B9="","",IF(AND(D9="A",P9>O9),P9-O9,"")) ->  | R9: =IF(B9="","",IF(AND(O9>0,D9="F"),"",IF(D9="A","",IF(O9<P9,P9-O9,"")))) ->  | S9: =IF(B9="","",IF(AND(WEEKDAY(B9,1)=7,P9=0,D9<>"F"),MAX(0,O9-P9),IF(P9=0,0,MAX(0,O9-P9)))) -> 01:12:00 | T9: =IF(B9="","",IF(AND(WEEKDAY(B9,1)=7,P9=0,D9<>"F"),0,IF(P9=0,O9,0))) -> 00:00:00 | V9: 2 | W9: Segunda-feira | X9: 08:48:00 | Z9: =IF(B9="","",IF($E9="",0,TIME(INT(E9/100),MOD(E9,100),0))) -> 08:00:00 | AA9: =IF(B9="","",IF($F9="",0,TIME(INT(F9/100),MOD(F9,100),0))) -> 12:00:00 | AB9: =IF(B9="","",IF($G9="",0,TIME(INT(G9/100),MOD(G9,100),0))) -> 13:00:00 | AC9: =IF(B9="","",IF($H9="",0,TIME(INT(H9/100),MOD(H9,100),0))) -> 16:00:00 | AD9: =IF(B9="","",IF($I9="",0,TIME(INT(I9/100),MOD(I9,100),0))) -> 16:30:00 | AE9: =IF(B9="","",IF($J9="",0,TIME(INT(J9/100),MOD(J9,100),0))) -> 19:30:00
A10: 3 | B10: =B9+1 -> 2023-10-03 | C10: 2023-10-03 | E10: 22:00 | F10: 02:00 | G10: 02:00 | H10: 05:00 | K10: 00:00:00 | L10: 07:00:00 | M10: 01:00:00 | N10: 08:00:00 | O10: 08:00:00 | P10: 08:48:00 | R10: 00:48:00 | S10: =IF(B10="","",IF(AND(WEEKDAY(B10,1)=7,P10=0,D10<>"F"),MAX(0,O10-P10),IF(P10=0,0,MAX(0,O10-P10)))) -> 00:00:00 | T10: 00:00:00 | V10: 3 | W10: Terça-feira | X10: 08:48:00 | Z10: 22:00:00 | AA10: 02:00:00 | AB10: 02:00:00 | AC10: 05:00:00 | AD10: 00:00:00 | AE10: 00:00:00
A11: 4 | B11: =B10+1 -> 2023-10-04 | C11: 2023-10-04 | E11: 12:00 | F11: 18:00 | G11: 19:00 | H11: 23:00 | K11: 09:00:00 | L11: 01:00:00 | M11: 00:08:34.286 | N11: 01:08:34.286 | O11: 10:08:34.286 | P11: 08:48:00 | S11: 01:20:34.286 | T11: 00:00:00 | V11: 4 | W11: Quarta-feira | X11: 08:48:00 | Z11: 12:00:00 | AA11: 18:00:00 | AB11: 19:00:00 | AC11: 23:00:00 | AD11: 00:00:00 | AE11: 00:00:00
A12: 5 | B12: =B11+1 -> 2023-10-05 | C12: 2023-10-05 | E12: 12:00 | F12: 18:00 | K12: 06:00:00 | L12: 00:00:00 | M12: 00:00:00 | N12: 00:00:00 | O12: 06:00:00 | P12: 08:48:00 | R12: 02:48:00 | S12: 00:00:00 | T12: 00:00:00 | V12: 5 | W12: Quinta-feira | X12: 08:48:00 | Z12: 12:00:00 | AA12: 18:00:00 | AB12: 00:00:00 | AC12: 00:00:00 | AD12: 00:00:00 | AE12: 00:00:00
A13: 6 | B13: =B12+1 -> 2023-10-06 | C13: 2023-10-06 | K13: 00:00:00 | L13: 00:00:00 | M13: 00:00:00 | N13: 00:00:00 | O13: 00:00:00 | P13: 08:48:00 | R13: 08:48:00 | S13: 00:00:00 | T13: 00:00:00 | V13: 6 | W13: Sexta-feira | X13: 08:48:00 | Z13: 00:00:00 | AA13: 00:00:00 | AB13: 00:00:00 | AC13: 00:00:00 | AD13: 00:00:00 | AE13: 00:00:00
A14: 7 | B14: 2023-10-07 | C14: 2023-10-07 | K14: 00:00:00 | L14: 00:00:00 | M14: 00:00:00 | N14: 00:00:00 | O14: 00:00:00 | P14: 00:00:00 | S14: 00:00:00 | T14: 00:00:00 | V14: 7 | W14: Sábado | X14: 00:00:00 | Z14: 00:00:00 | AA14: 00:00:00 | AB14: 00:00:00 | AC14: 00:00:00 | AD14: 00:00:00 | AE14: 00:00:00
A15: 1 | B15: 2023-10-08 | C15: 2023-10-08 | K15: 00:00:00 | L15: 00:00:00 | M15: 00:00:00 | N15: 00:00:00 | O15: 00:00:00 | P15: 00:00:00 | S15: 00:00:00 | T15: 00:00:00 | V15: 8 | W15: Feriados | X15: 00:00:00 | Z15: 00:00:00 | AA15: 00:00:00 | AB15: 00:00:00 | AC15: 00:00:00 | AD15: 00:00:00 | AE15: 00:00:00
A16: 2 | B16: 2023-10-09 | C16: 2023-10-09 | K16: 00:00:00 | L16: 00:00:00 | M16: 00:00:00 | N16: 00:00:00 | O16: 00:00:00 | P16: 08:48:00 | R16: 08:48:00 | S16: 00:00:00 | T16: 00:00:00 | W16: Folgas | X16: 00:00:00 | Z16: 00:00:00 | AA16: 00:00:00 | AB16: 00:00:00 | AC16: 00:00:00 | AD16: 00:00:00 | AE16: 00:00:00
A17: 3 | B17: 2023-10-10 | C17: 2023-10-10 | K17: 00:00:00 | L17: 00:00:00 | M17: 00:00:00 | N17: 00:00:00 | O17: 00:00:00 | P17: 08:48:00 | R17: 08:48:00 | S17: 00:00:00 | T17: 00:00:00 | W17: HORÁRIO NOTURNO | Z17: 00:00:00 | AA17: 00:00:00 | AB17: 00:00:00 | AC17: 00:00:00 | AD17: 00:00:00 | AE17: 00:00:00
A18: 4 | B18: 2023-10-11 | C18: 2023-10-11 | K18: 00:00:00 | L18: 00:00:00 | M18: 00:00:00 | N18: 00:00:00 | O18: 00:00:00 | P18: 08:48:00 | R18: 08:48:00 | S18: 00:00:00 | T18: 00:00:00 | W18: Início | X18: 22:00:00 | Z18: 00:00:00 | AA18: 00:00:00 | AB18: 00:00:00 | AC18: 00:00:00 | AD18: 00:00:00 | AE18: 00:00:00
A19: 8 | B19: 2023-10-12 | C19: feriado | K19: 00:00:00 | L19: 00:00:00 | M19: 00:00:00 | N19: 00:00:00 | O19: 00:00:00 | P19: 00:00:00 | S19: 00:00:00 | T19: 00:00:00 | W19: Término | X19: 05:00:00 | Z19: 00:00:00 | AA19: 00:00:00 | AB19: 00:00:00 | AC19: 00:00:00 | AD19: 00:00:00 | AE19: 00:00:00
A20: 6 | B20: 2023-10-13 | C20: 2023-10-13 | K20: 00:00:00 | L20: 00:00:00 | M20: 00:00:00 | N20: 00:00:00 | O20: 00:00:00 | P20: 08:48:00 | R20: 08:48:00 | S20: 00:00:00 | T20: 00:00:00 | W20: FECHAMENTO DO PONTO | Z20: 00:00:00 | AA20: 00:00:00 | AB20: 00:00:00 | AC20: 00:00:00 | AD20: 00:00:00 | AE20: 00:00:00
A21: 7 | B21: 2023-10-14 | C21: 2023-10-14 | K21: 00:00:00 | L21: 00:00:00 | M21: 00:00:00 | N21: 00:00:00 | O21: 00:00:00 | P21: 00:00:00 | S21: 00:00:00 | T21: 00:00:00 | W21: Dia do fechamento do ponto: | Z21: 00:00:00 | AA21: 00:00:00 | AB21: 00:00:00 | AC21: 00:00:00 | AD21: 00:00:00 | AE21: 00:00:00
A22: 1 | B22: 2023-10-15 | C22: 2023-10-15 | K22: 00:00:00 | L22: 00:00:00 | M22: 00:00:00 | N22: 00:00:00 | O22: 00:00:00 | P22: 00:00:00 | S22: 00:00:00 | T22: 00:00:00 | W22: Selecione o ano : | X22: 2023 | Z22: 00:00:00 | AA22: 00:00:00 | AB22: 00:00:00 | AC22: 00:00:00 | AD22: 00:00:00 | AE22: 00:00:00
A23: 2 | B23: 2023-10-16 | C23: 2023-10-16 | K23: 00:00:00 | L23: 00:00:00 | M23: 00:00:00 | N23: 00:00:00 | O23: 00:00:00 | P23: 08:48:00 | R23: 08:48:00 | S23: 00:00:00 | T23: 00:00:00 | W23: Selecione o mês : | X23: 10 | Z23: 00:00:00 | AA23: 00:00:00 | AB23: 00:00:00 | AC23: 00:00:00 | AD23: 00:00:00 | AE23: 00:00:00
A24: 3 | B24: 2023-10-17 | C24: 2023-10-17 | K24: 00:00:00 | L24: 00:00:00 | M24: 00:00:00 | N24: 00:00:00 | O24: 00:00:00 | P24: 08:48:00 | R24: 08:48:00 | S24: 00:00:00 | T24: 00:00:00 | Z24: 00:00:00 | AA24: 00:00:00 | AB24: 00:00:00 | AC24: 00:00:00 | AD24: 00:00:00 | AE24: 00:00:00
A25: 4 | B25: 2023-10-18 | C25: 2023-10-18 | K25: 00:00:00 | L25: 00:00:00 | M25: 00:00:00 | N25: 00:00:00 | O25: 00:00:00 | P25: 08:48:00 | R25: 08:48:00 | S25: 00:00:00 | T25: 00:00:00 | W25: Adicional Noturno: | X25: =N39 -> 0.380952381 | Z25: 00:00:00 | AA25: 00:00:00 | AB25: 00:00:00 | AC25: 00:00:00 | AD25: 00:00:00 | AE25: 00:00:00
A26: 5 | B26: 2023-10-19 | C26: 2023-10-19 | K26: 00:00:00 | L26: 00:00:00 | M26: 00:00:00 | N26: 00:00:00 | O26: 00:00:00 | P26: 08:48:00 | R26: 08:48:00 | S26: 00:00:00 | T26: 00:00:00 | W26: Horas Trabalhadas: | X26: =O39 -> 1.422619048 | Z26: 00:00:00 | AA26: 00:00:00 | AB26: 00:00:00 | AC26: 00:00:00 | AD26: 00:00:00 | AE26: 00:00:00
A27: 6 | B27: 2023-10-20 | C27: 2023-10-20 | K27: 00:00:00 | L27: 00:00:00 | M27: 00:00:00 | N27: 00:00:00 | O27: 00:00:00 | P27: 08:48:00 | R27: 08:48:00 | S27: 00:00:00 | T27: 00:00:00 | W27: Ausências Injustificadas: | X27: =Q39 -> 0 | Z27: 00:00:00 | AA27: 00:00:00 | AB27: 00:00:00 | AC27: 00:00:00 | AD27: 00:00:00 | AE27: 00:00:00
A28: 7 | B28: 2023-10-21 | C28: 2023-10-21 | K28: 00:00:00 | L28: 00:00:00 | M28: 00:00:00 | N28: 00:00:00 | O28: 00:00:00 | P28: 00:00:00 | S28: 00:00:00 | T28: 00:00:00 | W28: Horas Compensadas: | X28: =R39 -> 6.383333333 | Z28: 00:00:00 | AA28: 00:00:00 | AB28: 00:00:00 | AC28: 00:00:00 | AD28: 00:00:00 | AE28: 00:00:00
A29: 1 | B29: 2023-10-22 | C29: 2023-10-22 | K29: 00:00:00 | L29: 00:00:00 | M29: 00:00:00 | N29: 00:00:00 | O29: 00:00:00 | P29: 00:00:00 | S29: 00:00:00 | T29: 00:00:00 | W29: Horas Extras: | X29: =S39 -> 0.105952381 | Z29: 00:00:00 | AA29: 00:00:00 | AB29: 00:00:00 | AC29: 00:00:00 | AD29: 00:00:00 | AE29: 00:00:00
A30: 2 | B30: 2023-10-23 | C30: 2023-10-23 | K30: 00:00:00 | L30: 00:00:00 | M30: 00:00:00 | N30: 00:00:00 | O30: 00:00:00 | P30: 08:48:00 | R30: 08:48:00 | S30: 00:00:00 | T30: 00:00:00 | W30: Folgas Trabalhadas: | X30: =T39 -> 0 | Z30: 00:00:00 | AA30: 00:00:00 | AB30: 00:00:00 | AC30: 00:00:00 | AD30: 00:00:00 | AE30: 00:00:00
A31: 3 | B31: 2023-10-24 | C31: =IF(B31="","",IF(COUNTIF(fer,B31)>0,"feriado",B31)) -> 2023-10-24 | K31: 00:00:00 | L31: 00:00:00 | M31: 00:00:00 | N31: 00:00:00 | O31: 00:00:00 | P31: 08:48:00 | R31: 08:48:00 | S31: 00:00:00 | T31: 00:00:00 | Z31: 00:00:00 | AA31: 00:00:00 | AB31: 00:00:00 | AC31: 00:00:00 | AD31: 00:00:00 | AE31: 00:00:00
A32: 4 | B32: 2023-10-25 | C32: 2023-10-25 | K32: 00:00:00 | L32: 00:00:00 | M32: 00:00:00 | N32: 00:00:00 | O32: 00:00:00 | P32: 08:48:00 | R32: 08:48:00 | S32: 00:00:00 | T32: 00:00:00 | W32: =IF(X28-X29=0,0,(IF(X28-X29<0,"Horas Extras","Horas Compensadas"))) -> Horas Compensadas | X32: =IF(X28-X29<0,(X28*-1)-(X29*-1),X28-X29) -> 6.277380952 | Z32: 00:00:00 | AA32: 00:00:00 | AB32: 00:00:00 | AC32: 00:00:00 | AD32: 00:00:00 | AE32: 00:00:00
A33: 5 | B33: 2023-10-26 | C33: 2023-10-26 | K33: 00:00:00 | L33: 00:00:00 | M33: 00:00:00 | N33: 00:00:00 | O33: 00:00:00 | P33: 08:48:00 | R33: 08:48:00 | S33: 00:00:00 | T33: 00:00:00 | Z33: 00:00:00 | AA33: 00:00:00 | AB33: 00:00:00 | AC33: 00:00:00 | AD33: 00:00:00 | AE33: 00:00:00
A34: 6 | B34: 2023-10-27 | C34: 2023-10-27 | K34: 00:00:00 | L34: 00:00:00 | M34: 00:00:00 | N34: 00:00:00 | O34: 00:00:00 | P34: 08:48:00 | R34: 08:48:00 | S34: 00:00:00 | T34: 00:00:00 | Z34: 00:00:00 | AA34: 00:00:00 | AB34: 00:00:00 | AC34: 00:00:00 | AD34: 00:00:00 | AE34: 00:00:00
A35: 7 | B35: 2023-10-28 | C35: 2023-10-28 | K35: 00:00:00 | L35: 00:00:00 | M35: 00:00:00 | N35: 00:00:00 | O35: 00:00:00 | P35: 00:00:00 | S35: 00:00:00 | T35: 00:00:00 | Z35: 00:00:00 | AA35: 00:00:00 | AB35: 00:00:00 | AC35: 00:00:00 | AD35: 00:00:00 | AE35: 00:00:00
A36: 1 | B36: =IF(B35="","",IF(B35>=fim,"",B35+1)) -> 2023-10-29 | C36: 2023-10-29 | K36: 00:00:00 | L36: 00:00:00 | M36: 00:00:00 | N36: 00:00:00 | O36: 00:00:00 | P36: 00:00:00 | S36: 00:00:00 | T36: 00:00:00 | Z36: 00:00:00 | AA36: 00:00:00 | AB36: 00:00:00 | AC36: 00:00:00 | AD36: 00:00:00 | AE36: 00:00:00
A37: 2 | B37: =IF(B36="","",IF(B36>=fim,"",B36+1)) -> 2023-10-30 | C37: 2023-10-30 | K37: 00:00:00 | L37: 00:00:00 | M37: 00:00:00 | N37: 00:00:00 | O37: 00:00:00 | P37: 08:48:00 | R37: 08:48:00 | S37: 00:00:00 | T37: 00:00:00 | Z37: 00:00:00 | AA37: 00:00:00 | AB37: 00:00:00 | AC37: 00:00:00 | AD37: 00:00:00 | AE37: 00:00:00
A38: 3 | B38: =IF(B37="","",IF(B37>=fim,"",B37+1)) -> 2023-10-31 | C38: 2023-10-31 | K38: 00:00:00 | L38: 00:00:00 | M38: 00:00:00 | N38: 00:00:00 | O38: =IF(B38="","",MOD((AA38-Z38)+(AC38-AB38)+(AE38-AD38),1)+M38) -> 00:00:00 | P38: 08:48:00 | R38: 08:48:00 | S38: =IF(B38="","",IF(AND(WEEKDAY(B38,1)=7,P38=0,D38<>"F"),MAX(0,O38-P38),IF(P38=0,0,MAX(0,O38-P38)))) -> 00:00:00 | T38: =IF(B38="","",IF(AND(WEEKDAY(B38,1)=7,P38=0,D38="F"),0,IF(P38=0,O38,0))) -> 00:00:00 | Z38: 00:00:00 | AA38: 00:00:00 | AB38: 00:00:00 | AC38: 00:00:00 | AD38: 00:00:00 | AE38: 00:00:00
B39: Início | C39: Término | E39: fer | F39: dom | G39: mês | H39: dias úteis | K39: repousos | L39: dsr | M39: Total: | N39: =SUM(N8:N38) -> 0.380952381 | O39: =SUM(O8:O38) -> 1.422619048 | P39: Total: | Q39: =SUM(Q8:Q38) -> 0 | R39: =SUM(R7:R38) -> 6.383333333 | S39: =SUM(S7:S38) -> 0.105952381 | T39: =SUM(T8:T38) -> 0
B40: =B8 -> 2023-10-01 | C40: =MAX(B8:B38) -> 2023-10-31 | E40: =COUNTIF(C8:C38,"feriado") -> 1 | F40: =SUMPRODUCT((WEEKDAY(ROW(INDIRECT($B40&":"&$C40)))=1)*(COUNTIF(fer,ROW(INDIRECT($B40&":"&$C40)))=0)) -> 5 | G40: =C40-B40+1 -> 31 | H40: =G40-K40 -> 25 | K40: =E40+F40 -> 6 | L40: =H40&"/"&K40 -> 25/6 | M40: Decimal: | N40: =N39*24 -> 9.14 | O40: =O39*24 -> 34.14 | P40: Decimal: | Q40: =Q39*24 -> 0.00 | R40: 153.20 | S40: =S39*24 -> 2.54 | T40: =T39*24 -> 0.00
B41: =IF(dia_f="","",DATE(ano_p,mês_p,1)) ->  | C41: =IF(dia_f="","",DATE(ano_p,mês_p+1,0)) ->  | E41: =IF(B41="","",SUMPRODUCT(((WEEKDAY(fer)>1))*(fer>=B41)*(fer<=C41))) ->  | F41: =IF(B41="","",SUMPRODUCT((WEEKDAY(ROW(INDIRECT($B41&":"&$C41)))=1)*1)) ->  | G41: =IF(B41="","",DAY(C41)) ->  | H41: =IF(B41="","",SUMPRODUCT((WEEKDAY(ROW(INDIRECT(B41&":"&C41)))>1)*(COUNTIF(fer,ROW(INDIRECT(B41&":"&C41)))=0))) ->  | K41: =IF(B41="","",E41+F41) ->  | L41: =IF(B41="","",H41&"/"&K41) ->  | M41: Dsr: | N41: =N40/$H$40*$K$40 -> 2.19
M42: =IF(B41="","","Dsr mês:") ->  | N42: =IF(B41="","",N40/H41*K41) ->  | O42: =IF(B41="","","Dsr mês:") ->  | S42: =IF(B41="","",S40/$H$41*$K$41) ->  | T42: =IF(B41="","",T40/$H$41*$K$41) -> 
W116: =IF(OR(dia_f="",dia_f=1),DATE(ano_p,mês_p,1),DATE(ano_p,mês_p-1,dia_f+1)) -> 2023-10-01 | X116: Data de início:
W117: =IF(OR(dia_f="",dia_f=1),DATE(ano_p,mês_p+1,0),(DATE($X$22,mês_p,dia_f))) -> 2023-10-31 | X117: Data final:
D119: Meses | F119: Anos
D120: 1 | F120: 2020
D121: 2 | F121: 2021
D122: 3 | F122: 2022
D123: 4 | F123: 2023
D124: 5 | F124: 2024
D125: 6 | F125: 2025
D126: 7 | F126: 2026
D127: 8 | F127: 2027
D128: 9 | F128: 2028
D129: 10 | F129: 2029
D130: 11 | F130: 2030
D131: 12 | F131: 2031

Sheet Novembro
E1: =CHOOSE(MONTH(W117),"Janeiro","Fevereiro","Março","Abril","Maio","Junho","Julho","Agosto","Setembro","Outubro","Novembro","Dezembro") -> Novembro
B5: Empregado : | D5: =Outubro!D5 -> Alexandre José de Souza Silva | I5: Setor : | O5: Unidade :
B6: Data | C6: Dia Semana | D6: Folgas | E6: Entrada | F6: Saída | G6: Entrada | H6: Saída | I6: Entrada | J6: Saída | K6: Horas Diurnas | L6: H. Not. s/ red. | M6: Hora Ficta | N6: Adicional Noturno | O6: H. Trab. | P6: H. Normais | Q6: Ausências In-justificadas | R6: Compen-sadas | S6: H. Extras | T6: HE 100% | W6: JORNADA CONTRATUAL | Z6: CARTÃO PONTO ESPELHO
B7: Saldo anterior | R7: =IF(Outubro!W32="Horas Compensadas",Outubro!X32,0) -> 6.277380952 | S7: =IF(Outubro!W32="Horas Extras",Outubro!X32,0) -> 0 | Z7: Entrada | AA7: Saída | AB7: Entrada | AC7: Saída | AD7: Entrada | AE7: Saída
A8: =IF(B8="","",IF(C8<>"feriado",WEEKDAY(B8),8)) -> 4 | B8: =EDATE(inicio,1) -> 2023-11-01 | C8: =IF(B8="","",IF(COUNTIF(fer,B8)>0,"feriado",B8)) -> 2023-11-01 | E8: 09:00 | F8: 12:00 | G8: 13:00 | H8: 19:00 | I8: 22:00 | J8: 23:00 | K8: =IF(B8="","",ROUND(O8-N8,5)) -> 09:00:00 | L8: =IF(B8="","",IF(AND(E8="",F8=""),0,MAX(ININOT,MIN(FIMNOT+1,AA8+(Z8>AA8)))-MAX(ININOT,Z8)+(MIN(FIMNOT,AA8+(Z8>AA8))-MIN(FIMNOT,Z8)))+IF(AND(G8="",H8=""),0,MAX(ININOT,MIN(FIMNOT+1,AC8+(AB8>AC8)))-MAX(ININOT,AB8)+(MIN(FIMNOT,AC8+(AB8>AC8))-MIN(FIMNOT,AB8)))+IF(AND(I8="",J8=""),0,MAX(ININOT,MIN(FIMNOT+1,AE8+(AD8>AE8)))-MAX(ININOT,AD8)+(MIN(FIMNOT,AE8+(AD8>AE8))-MIN(FIMNOT,AD8)))) -> 01:00:00 | M8: =IF(B8="","",(L8/7*8)-L8) -> 00:08:34.286 | N8: =IF(B8="","",L8+M8) -> 01:08:34.286 | O8: =IF(B8="","",MOD((AA8-Z8)+(AC8-AB8)+(AE8-AD8),1)+M8) -> 10:08:34.286 | P8: =IF(B8="","",IF(D8="F",$X$16,VLOOKUP(A8,jornada,3))) -> 07:20:00 | Q8: =IF(B8="","",IF(AND(D8="A",P8>O8),P8-O8,"")) ->  | R8: =IF(B8="","",IF(AND(O8>0,D8="F"),"",IF(D8="A","",IF(O8<P8,P8-O8,"")))) ->  | S8: =IF(B8="","",IF(AND(WEEKDAY(B8,1)=7,P8=0,D8<>"F"),MAX(0,O8-P8),IF(P8=0,0,MAX(0,O8-P8)))) -> 02:48:34.286 | T8: =IF(B8="","",IF(AND(WEEKDAY(B8,1)=7,P8=0,D8<>"F"),0,IF(P8=0,O8,0))) -> 00:00:00 | V8: 1 | W8: domingo | X8: 07:20:00 | Z8: =IF(B8="","",IF($E8="",0,TIME(INT(E8/100),MOD(E8,100),0))) -> 09:00:00 | AA8: =IF(B8="","",IF($F8="",0,TIME(INT(F8/100),MOD(F8,100),0))) -> 12:00:00 | AB8: =IF(B8="","",IF($G8="",0,TIME(INT(G8/100),MOD(G8,100),0))) -> 13:00:00 | AC8: =IF(B8="","",IF($H8="",0,TIME(INT(H8/100),MOD(H8,100),0))) -> 19:00:00 | AD8: =IF(B8="","",IF($I8="",0,TIME(INT(I8/100),MOD(I8,100),0))) -> 22:00:00 | AE8: =IF(B8="","",IF($J8="",0,TIME(INT(J8/100),MOD(J8,100),0))) -> 23:00:00
A9: =IF(B9="","",IF(C9<>"feriado",WEEKDAY(B9),8)) -> 8 | B9: =B8+1 -> 2023-11-02 | C9: =IF(B9="","",IF(COUNTIF(fer,B9)>0,"feriado",B9)) -> feriado | E9: 09:00 | F9: 12:00 | G9: 13:00 | H9: 20:00 | I9: 22:00 | J9: 24:00 | K9: =IF(B9="","",ROUND(O9-N9,5)) -> 10:00:00.288 | L9: 02:00:00 | M9: =IF(B9="","",(L9/7*8)-L9) -> 00:17:08.571 | N9: =IF(B9="","",L9+M9) -> 02:17:08.571 | O9: =IF(B9="","",MOD((AA9-Z9)+(AC9-AB9)+(AE9-AD9),1)+M9) -> 12:17:08.571 | P9: 07:20:00 | Q9: =IF(B9="","",IF(AND(D9="A",P9>O9),P9-O9,"")) ->  | R9: =IF(B9="","",IF(AND(O9>0,D9="F"),"",IF(D9="A","",IF(O9<P9,P9-O9,"")))) ->  | S9: =IF(B9="","",IF(AND(WEEKDAY(B9,1)=7,P9=0,D9<>"F"),MAX(0,O9-P9),IF(P9=0,0,MAX(0,O9-P9)))) -> 04:57:08.571 | T9: =IF(B9="","",IF(AND(WEEKDAY(B9,1)=7,P9=0,D9<>"F"),0,IF(P9=0,O9,0))) -> 00:00:00 | V9: 2 | W9: Segunda-feira | X9: 07:20:00 | Z9: =IF(B9="","",IF($E9="",0,TIME(INT(E9/100),MOD(E9,100),0))) -> 09:00:00 | AA9: =IF(B9="","",IF($F9="",0,TIME(INT(F9/100),MOD(F9,100),0))) -> 12:00:00 | AB9: =IF(B9="","",IF($G9="",0,TIME(INT(G9/100),MOD(G9,100),0))) -> 13:00:00 | AC9: =IF(B9="","",IF($H9="",0,TIME(INT(H9/100),MOD(H9,100),0))) -> 20:00:00 | AD9: =IF(B9="","",IF($I9="",0,TIME(INT(I9/100),MOD(I9,100),0))) -> 22:00:00 | AE9: =IF(B9="","",IF($J9="",0,TIME(INT(J9/100),MOD(J9,100),0))) -> 00:00:00
A10: 6 | B10: =B9+1 -> 2023-11-03 | C10: 2023-11-03 | D10: F | K10: 00:00:00 | L10: 00:00:00 | M10: 00:00:00 | N10: 00:00:00 | O10: 00:00:00 | P10: 00:00:00 | S10: 00:00:00 | T10: 00:00:00 | V10: 3 | W10: Terça-feira | X10: 07:20:00 | Z10: 00:00:00 | AA10: 00:00:00 | AB10: 00:00:00 | AC10: 00:00:00 | AD10: 00:00:00 | AE10: 00:00:00
A11: 7 | B11: =B10+1 -> 2023-11-04 | C11: 2023-11-04 | D11: A | E11: 08:00 | F11: 12:00 | G11: 00:00 | H11: 00:00 | I11: 22:00 | J11: 01:00 | K11: 04:00:00.288 | L11: 03:00:00 | M11: 00:25:42.857 | N11: 03:25:42.857 | O11: 07:25:42.857 | P11: 07:20:00 | S11: 00:05:42.857 | T11: 00:00:00 | V11: 4 | W11: Quarta-feira | X11: 07:20:00 | Z11: 08:00:00 | AA11: 12:00:00 | AB11: 00:00:00 | AC11: 00:00:00 | AD11: 22:00:00 | AE11: 01:00:00
A12: 1 | B12: =B11+1 -> 2023-11-05 | C12: 2023-11-05 | E12: 09:00 | F12: 12:00 | G12: 13:00 | H12: 18:00 | I12: 22:00 | J12: 02:00 | K12: 07:59:59.712 | L12: 04:00:00 | M12: 00:34:17.143 | N12: 04:34:17.143 | O12: 12:34:17.143 | P12: 07:20:00 | S12: 05:14:17.143 | T12: 00:00:00 | V12: 5 | W12: Quinta-feira | X12: 07:20:00 | Z12: 09:00:00 | AA12: 12:00:00 | AB12: 13:00:00 | AC12: 18:00:00 | AD12: 22:00:00 | AE12: 02:00:00
A13: 2 | B13: =B12+1 -> 2023-11-06 | C13: 2023-11-06 | E13: 09:00 | F13: 13:00 | G13: 13:30 | H13: 23:00 | I13: 23:00 | J13: 02:00 | K13: 12:29:59.712 | L13: 04:00:00 | M13: 00:34:17.143 | N13: 04:34:17.143 | O13: 17:04:17.143 | P13: 07:20:00 | S13: 09:44:17.143 | T13: 00:00:00 | V13: 6 | W13: Sexta-feira | X13: 07:20:00 | Z13: 09:00:00 | AA13: 13:00:00 | AB13: 13:30:00 | AC13: 23:00:00 | AD13: 23:00:00 | AE13: 02:00:00
A14: 3 | B14: 2023-11-07 | C14: 2023-11-07 | E14: 10:00 | F14: 14:00 | G14: 22:00 | H14: 02:00 | I14: 02:00 | J14: 05:00 | K14: 04:00:00.288 | L14: 07:00:00 | M14: 01:00:00 | N14: 08:00:00 | O14: 12:00:00 | P14: 07:20:00 | S14: 04:40:00 | T14: 00:00:00 | V14: 7 | W14: Sábado | X14: 07:20:00 | Z14: 10:00:00 | AA14: 14:00:00 | AB14: 22:00:00 | AC14: 02:00:00 | AD14: 02:00:00 | AE14: 05:00:00
A15: 4 | B15: 2023-11-08 | C15: 2023-11-08 | E15: 12:00 | F15: 16:00 | G15: 17:00 | H15: 22:15 | I15: 22:15 | J15: 02:00 | K15: 09:00:00 | L15: 04:00:00 | M15: 00:34:17.143 | N15: 04:34:17.143 | O15: 13:34:17.143 | P15: 07:20:00 | S15: 06:14:17.143 | T15: 00:00:00 | V15: 8 | W15: Feriados | X15: 07:20:00 | Z15: 12:00:00 | AA15: 16:00:00 | AB15: 17:00:00 | AC15: 22:15:00 | AD15: 22:15:00 | AE15: 02:00:00
A16: 5 | B16: 2023-11-09 | C16: 2023-11-09 | D16: F | E16: 09:00 | F16: 12:00 | G16: 13:00 | H16: 19:00 | I16: 20:00 | J16: 24:00 | K16: 10:59:59.712 | L16: 02:00:00 | M16: 00:17:08.571 | N16: 02:17:08.571 | O16: 13:17:08.571 | P16: 00:00:00 | S16: 00:00:00 | T16: 13:17:08.571 | W16: Folgas | X16: 00:00:00 | Z16: 09:00:00 | AA16: 12:00:00 | AB16: 13:00:00 | AC16: 19:00:00 | AD16: 20:00:00 | AE16: 00:00:00
A17: 6 | B17: 2023-11-10 | C17: 2023-11-10 | E17: 09:00 | F17: 12:00 | G17: 13:00 | H17: 23:00 | I17: 24:00 | J17: 01:30 | K17: 12:00:00 | L17: 02:30:00 | M17: 00:21:25.714 | N17: 02:51:25.714 | O17: 14:51:25.714 | P17: 07:20:00 | S17: 07:31:25.714 | T17: 00:00:00 | W17: HORÁRIO NOTURNO | Z17: 09:00:00 | AA17: 12:00:00 | AB17: 13:00:00 | AC17: 23:00:00 | AD17: 00:00:00 | AE17: 01:30:00
A18: 7 | B18: 2023-11-11 | C18: 2023-11-11 | E18: 09:00 | F18: 12:00 | G18: 13:00 | H18: 23:00 | I18: 23:00 | J18: 02:30 | K18: 12:00:00 | L18: 04:30:00 | M18: 00:38:34.286 | N18: 05:08:34.286 | O18: 17:08:34.286 | P18: 07:20:00 | S18: 09:48:34.286 | T18: 00:00:00 | W18: Início | X18: =ININOT -> 22:00:00 | Z18: 09:00:00 | AA18: 12:00:00 | AB18: 13:00:00 | AC18: 23:00:00 | AD18: 23:00:00 | AE18: 02:30:00
A19: 1 | B19: 2023-11-12 | C19: 2023-11-12 | E19: 09:00 | F19: 13:00 | G19: 18:00 | H19: 23:00 | I19: 23:00 | J19: 06:00 | K19: 09:00:00 | L19: 07:00:00 | M19: 01:00:00 | N19: 08:00:00 | O19: 17:00:00 | P19: 07:20:00 | S19: 09:40:00 | T19: 00:00:00 | W19: Término | X19: =FIMNOT -> 05:00:00 | Z19: 09:00:00 | AA19: 13:00:00 | AB19: 18:00:00 | AC19: 23:00:00 | AD19: 23:00:00 | AE19: 06:00:00
A20: 2 | B20: 2023-11-13 | C20: 2023-11-13 | E20: 10:00 | F20: 14:00 | G20: 15:30 | H20: 23:00 | I20: 23:00 | J20: 02:00 | K20: 10:30:00 | L20: 04:00:00 | M20: 00:34:17.143 | N20: 04:34:17.143 | O20: 15:04:17.143 | P20: 07:20:00 | S20: 07:44:17.143 | T20: 00:00:00 | W20: FECHAMENTO DO PONTO | Z20: 10:00:00 | AA20: 14:00:00 | AB20: 15:30:00 | AC20: 23:00:00 | AD20: 23:00:00 | AE20: 02:00:00
A21: 3 | B21: 2023-11-14 | C21: 2023-11-14 | E21: 12:00 | F21: 16:00 | G21: 17:00 | H21: 22:15 | I21: 23:15 | J21: 02:15 | K21: 09:00:00 | L21: 03:15:00 | M21: 00:27:51.429 | N21: 03:42:51.429 | O21: 12:42:51.429 | P21: 07:20:00 | S21: 05:22:51.429 | T21: 00:00:00 | W21: Dia do fechamento do ponto: | X21: =IF(dia_f="","",dia_f) ->  | Z21: 12:00:00 | AA21: 16:00:00 | AB21: 17:00:00 | AC21: 22:15:00 | AD21: 23:15:00 | AE21: 02:15:00
A22: 8 | B22: 2023-11-15 | C22: feriado | E22: 09:00 | F22: 12:00 | G22: 13:00 | H22: 22:30 | I22: 23:00 | J22: 01:00 | K22: 12:00:00 | L22: 02:30:00 | M22: 00:21:25.714 | N22: 02:51:25.714 | O22: 14:51:25.714 | P22: 07:20:00 | S22: 07:31:25.714 | T22: 00:00:00 | Z22: 09:00:00 | AA22: 12:00:00 | AB22: 13:00:00 | AC22: 22:30:00 | AD22: 23:00:00 | AE22: 01:00:00
A23: 5 | B23: 2023-11-16 | C23: 2023-11-16 | E23: 09:00 | F23: 12:00 | G23: 13:00 | H23: 24:00 | K23: 12:00:00 | L23: 02:00:00 | M23: 00:17:08.571 | N23: 02:17:08.571 | O23: 14:17:08.571 | P23: 07:20:00 | S23: 06:57:08.571 | T23: 00:00:00 | Z23: 09:00:00 | AA23: 12:00:00 | AB23: 13:00:00 | AC23: 00:00:00 | AD23: 00:00:00 | AE23: 00:00:00
A24: 6 | B24: 2023-11-17 | C24: 2023-11-17 | D24: F | E24: 08:00 | F24: 12:00 | K24: 04:00:00.288 | L24: 00:00:00 | M24: 00:00:00 | N24: 00:00:00 | O24: 04:00:00 | P24: 00:00:00 | S24: 00:00:00 | T24: 04:00:00 | Z24: 08:00:00 | AA24: 12:00:00 | AB24: 00:00:00 | AC24: 00:00:00 | AD24: 00:00:00 | AE24: 00:00:00
A25: 7 | B25: 2023-11-18 | C25: 2023-11-18 | E25: 04:00 | F25: 12:00 | G25: 13:00 | H25: 18:00 | K25: 12:00:00 | L25: 01:00:00 | M25: 00:08:34.286 | N25: 01:08:34.286 | O25: 13:08:34.286 | P25: 07:20:00 | S25: 05:48:34.286 | T25: 00:00:00 | W25: Adicional Noturno: | X25: =N39 -> 3.432539683 | Z25: 04:00:00 | AA25: 12:00:00 | AB25: 13:00:00 | AC25: 18:00:00 | AD25: 00:00:00 | AE25: 00:00:00
A26: 1 | B26: 2023-11-19 | C26: 2023-11-19 | E26: 04:30 | F26: 13:00 | G26: 13:30 | H26: 16:00 | K26: 10:30:00 | L26: 00:30:00 | M26: 00:04:17.143 | N26: 00:34:17.143 | O26: 11:04:17.143 | P26: 07:20:00 | S26: 03:44:17.143 | T26: 00:00:00 | W26: Horas Trabalhadas: | X26: =O39 -> 14.22420635 | Z26: 04:30:00 | AA26: 13:00:00 | AB26: 13:30:00 | AC26: 16:00:00 | AD26: 00:00:00 | AE26: 00:00:00
A27: 8 | B27: 2023-11-20 | C27: feriado | E27: 04:30 | F27: 14:00 | G27: 15:30 | H27: 18:00 | I27: 19:00 | J27: 23:00 | K27: 14:30:00.288 | L27: 01:30:00 | M27: 00:12:51.429 | N27: 01:42:51.429 | O27: 16:12:51.429 | P27: 07:20:00 | S27: 08:52:51.429 | T27: 00:00:00 | W27: Ausências Injustificadas: | X27: =Q39 -> 0 | Z27: 04:30:00 | AA27: 14:00:00 | AB27: 15:30:00 | AC27: 18:00:00 | AD27: 19:00:00 | AE27: 23:00:00
A28: 3 | B28: 2023-11-21 | C28: 2023-11-21 | E28: 04:00 | F28: 16:00 | G28: 17:00 | H28: 22:00 | I28: 22:00 | J28: 04:00 | K28: 16:00:00.288 | L28: 07:00:00 | M28: 01:00:00 | N28: 08:00:00 | O28: 1 | P28: 07:20:00 | S28: 16:40:00 | T28: 00:00:00 | W28: Horas Compensadas: | X28: =R39 -> 6.923214286 | Z28: 04:00:00 | AA28: 16:00:00 | AB28: 17:00:00 | AC28: 22:00:00 | AD28: 22:00:00 | AE28: 04:00:00
A29: 4 | B29: 2023-11-22 | C29: 2023-11-22 | E29: 03:00 | F29: 06:00 | G29: 10:00 | H29: 23:00 | K29: 13:00:00.288 | L29: 03:00:00 | M29: 00:25:42.857 | N29: 03:25:42.857 | O29: 16:25:42.857 | P29: 07:20:00 | S29: 09:05:42.857 | T29: 00:00:00 | W29: Horas Extras: | X29: =S39 -> 6.014880952 | Z29: 03:00:00 | AA29: 06:00:00 | AB29: 10:00:00 | AC29: 23:00:00 | AD29: 00:00:00 | AE29: 00:00:00
A30: 5 | B30: 2023-11-23 | C30: 2023-11-23 | E30: 03:30 | F30: 12:00 | G30: 13:00 | H30: 19:00 | K30: 13:00:00.288 | L30: 01:30:00 | M30: 00:12:51.429 | N30: 01:42:51.429 | O30: 14:42:51.429 | P30: 07:20:00 | S30: 07:22:51.429 | T30: 00:00:00 | W30: Folgas Trabalhadas: | X30: =T39 -> 0.9107142857 | Z30: 03:30:00 | AA30: 12:00:00 | AB30: 13:00:00 | AC30: 19:00:00 | AD30: 00:00:00 | AE30: 00:00:00
A31: 6 | B31: 2023-11-24 | C31: =IF(B31="","",IF(COUNTIF(fer,B31)>0,"feriado",B31)) -> 2023-11-24 | D31: F | I31: 22:00 | J31: 02:00 | K31: 00:00:00 | L31: 04:00:00 | M31: 00:34:17.143 | N31: 04:34:17.143 | O31: 04:34:17.143 | P31: 00:00:00 | S31: 00:00:00 | T31: 04:34:17.143 | Z31: 00:00:00 | AA31: 00:00:00 | AB31: 00:00:00 | AC31: 00:00:00 | AD31: 22:00:00 | AE31: 02:00:00
A32: 7 | B32: 2023-11-25 | C32: 2023-11-25 | E32: 09:00 | F32: 12:00 | G32: 13:00 | H32: 18:00 | K32: 07:59:59.712 | L32: 00:00:00 | M32: 00:00:00 | N32: 00:00:00 | O32: 08:00:00 | P32: 07:20:00 | S32: 00:40:00 | T32: 00:00:00 | W32: =IF(X28-X29=0,0,(IF(X28-X29<0,"Horas Extras","Horas Compensadas"))) -> Horas Compensadas | X32: =IF(X28-X29<0,(X28*-1)-(X29*-1),X28-X29) -> 0.9083333333 | Z32: 09:00:00 | AA32: 12:00:00 | AB32: 13:00:00 | AC32: 18:00:00 | AD32: 00:00:00 | AE32: 00:00:00
A33: 1 | B33: 2023-11-26 | C33: 2023-11-26 | E33: 09:00 | F33: 13:00 | G33: 13:30 | H33: 16:00 | K33: 06:29:59.712 | L33: 00:00:00 | M33: 00:00:00 | N33: 00:00:00 | O33: 06:30:00 | P33: 07:20:00 | R33: 00:50:00 | S33: 00:00:00 | T33: 00:00:00 | Z33: 09:00:00 | AA33: 13:00:00 | AB33: 13:30:00 | AC33: 16:00:00 | AD33: 00:00:00 | AE33: 00:00:00
A34: 2 | B34: 2023-11-27 | C34: 2023-11-27 | E34: 10:00 | F34: 14:00 | G34: 15:30 | H34: 20:00 | K34: 08:30:00.288 | L34: 00:00:00 | M34: 00:00:00 | N34: 00:00:00 | O34: 08:30:00 | P34: 07:20:00 | S34: 01:10:00 | T34: 00:00:00 | Z34: 10:00:00 | AA34: 14:00:00 | AB34: 15:30:00 | AC34: 20:00:00 | AD34: 00:00:00 | AE34: 00:00:00
A35: 3 | B35: 2023-11-28 | C35: 2023-11-28 | E35: 12:00 | F35: 16:00 | G35: 17:00 | H35: 22:50 | K35: 09:00:00 | L35: 00:50:00 | M35: 00:07:08.571 | N35: 00:57:08.571 | O35: 09:57:08.571 | P35: 07:20:00 | S35: 02:37:08.571 | T35: 00:00:00 | Z35: 12:00:00 | AA35: 16:00:00 | AB35: 17:00:00 | AC35: 22:50:00 | AD35: 00:00:00 | AE35: 00:00:00
A36: 4 | B36: =IF(B35="","",IF(B35>=W117,"",B35+1)) -> 2023-11-29 | C36: 2023-11-29 | K36: 00:00:00 | L36: 00:00:00 | M36: 00:00:00 | N36: 00:00:00 | O36: 00:00:00 | P36: 07:20:00 | R36: 07:20:00 | S36: 00:00:00 | T36: 00:00:00 | Z36: 00:00:00 | AA36: 00:00:00 | AB36: 00:00:00 | AC36: 00:00:00 | AD36: 00:00:00 | AE36: 00:00:00
A37: 5 | B37: =IF(B36="","",IF(B36>=W117,"",B36+1)) -> 2023-11-30 | C37: 2023-11-30 | K37: 00:00:00 | L37: 00:00:00 | M37: 00:00:00 | N37: 00:00:00 | O37: 00:00:00 | P37: 07:20:00 | R37: 07:20:00 | S37: 00:00:00 | T37: 00:00:00 | Z37: 00:00:00 | AA37: 00:00:00 | AB37: 00:00:00 | AC37: 00:00:00 | AD37: 00:00:00 | AE37: 00:00:00
B38: =IF(B37="","",IF(B37>=W117,"",B37+1)) ->  | O38: =IF(B38="","",MOD((AA38-Z38)+(AC38-AB38)+(AE38-AD38),1)+M38) ->  | S38: =IF(B38="","",IF(AND(WEEKDAY(B38,1)=7,P38=0,D38<>"F"),MAX(0,O38-P38),IF(P38=0,0,MAX(0,O38-P38)))) ->  | T38: =IF(B38="","",IF(AND(WEEKDAY(B38,1)=7,P38=0,D38="F"),0,IF(P38=0,O38,0))) -> 
B39: Início | C39: Término | E39: fer | F39: dom | G39: mês | H39: dias úteis | K39: repousos | L39: dsr | M39: Total: | N39: =SUM(N8:N38) -> 3.432539683 | O39: =SUM(O8:O38) -> 14.22420635 | P39: Total: | Q39: =SUM(Q8:Q38) -> 0 | R39: =SUM(R7:R38) -> 6.923214286 | S39: =SUM(S7:S38) -> 6.014880952 | T39: =SUM(T8:T38) -> 0.9107142857
B40: =B8 -> 2023-11-01 | C40: =MAX(B8:B38) -> 2023-11-30 | E40: =COUNTIF(C8:C38,"feriado") -> 3 | F40: =SUMPRODUCT((WEEKDAY(ROW(INDIRECT($B40&":"&$C40)))=1)*(COUNTIF(fer,ROW(INDIRECT($B40&":"&$C40)))=0)) -> 4 | G40: =C40-B40+1 -> 30 | H40: =G40-K40 -> 23 | K40: =E40+F40 -> 7 | L40: =H40&"/"&K40 -> 23/7 | M40: Decimal: | N40: =N39*24 -> 82.38 | O40: =O39*24 -> 341.38 | P40: Decimal: | Q40: =Q39*24 -> 0.00 | R40: 166.16 | S40: =S39*24 -> 144.36 | T40: =T39*24 -> 21.86
B41: =IF(dia_f="","",DATE(YEAR(W117),MONTH(W117),1)) ->  | C41: =IF(dia_f="","",EOMONTH(B41,0)) ->  | E41: =IF(B41="","",SUMPRODUCT(((WEEKDAY(fer)>1))*(fer>=B41)*(fer<=C41))) ->  | F41: =IF(B41="","",SUMPRODUCT((WEEKDAY(ROW(INDIRECT($B41&":"&$C41)))=1)*1)) ->  | G41: =IF(B41="","",DAY(C41)) ->  | H41: =IF(B41="","",SUMPRODUCT((WEEKDAY(ROW(INDIRECT(B41&":"&C41)))>1)*(COUNTIF(fer,ROW(INDIRECT(B41&":"&C41)))=0))) ->  | K41: =IF(B41="","",E41+F41) ->  | L41: =IF(B41="","",H41&"/"&K41) ->  | M41: Dsr: | N41: =N40/$H$40*$K$40 -> 25.07
M42: =IF(B41="","","Dsr mês:") ->  | N42: =IF(B41="","",N40/H41*K41) ->  | O42: =IF(B41="","","Dsr mês:") ->  | S42: =IF(B41="","",S40/$H$41*$K$41) ->  | T42: =IF(B41="","",T40/$H$41*$K$41) -> 
W116: =$B$8 -> 2023-11-01 | X116: Data de início:
W117: =IF(DAY(B8)=1,EOMONTH(B8,0),DATE(YEAR(B8),MONTH(B8)+1,dia_f)) -> 2023-11-30 | X117: Data final:
D119: Meses | F119: Anos
D120: 1 | F120: 2020
D121: 2 | F121: 2021
D122: 3 | F122: 2022
D123: 4 | F123: 2023
D124: 5 | F124: 2024
D125: 6 | F125: 2025
D126: 7 | F126: 2026
D127: 8 | F127: 2027
D128: 9 | F128: 2028
D129: 10 | F129: 2029
D130: 11 | F130: 2030
D131: 12 | F131: 2031

Sheet Dezembro
E1: =CHOOSE(MONTH(W117),"Janeiro","Fevereiro","Março","Abril","Maio","Junho","Julho","Agosto","Setembro","Outubro","Novembro","Dezembro") -> Dezembro
B5: Empregado : | D5: =Outubro!D5 -> Alexandre José de Souza Silva | I5: Setor : | O5: Unidade :
B6: Data | C6: Dia Semana | D6: Folgas | E6: Entrada | F6: Saída | G6: Entrada | H6: Saída | I6: Entrada | J6: Saída | K6: Horas Diurnas | L6: H. Not. s/ red. | M6: Hora Ficta | N6: Adicional Noturno | O6: H. Trab. | P6: H. Normais | Q6: Ausências In-justificadas | R6: Compen-sadas | S6: H. Extras | T6: HE 100% | W6: JORNADA CONTRATUAL | Z6: CARTÃO PONTO ESPELHO
B7: Saldo anterior | R7: =IF(Novembro!W32="Horas Compensadas",Novembro!X32,0) -> 0.9083333333 | S7: =IF(Novembro!W32="Horas Extras",Novembro!X32,0) -> 0 | Z7: Entrada | AA7: Saída | AB7: Entrada | AC7: Saída | AD7: Entrada | AE7: Saída
A8: =IF(B8="","",IF(C8<>"feriado",WEEKDAY(B8),8)) -> 6 | B8: =EDATE(inicio,2) -> 2023-12-01 | C8: =IF(B8="","",IF(COUNTIF(fer,B8)>0,"feriado",B8)) -> 2023-12-01 | K8: =IF(B8="","",ROUND(O8-N8,5)) -> 00:00:00 | L8: =IF(B8="","",IF(AND(E8="",F8=""),0,MAX(ININOT,MIN(FIMNOT+1,AA8+(Z8>AA8)))-MAX(ININOT,Z8)+(MIN(FIMNOT,AA8+(Z8>AA8))-MIN(FIMNOT,Z8)))+IF(AND(G8="",H8=""),0,MAX(ININOT,MIN(FIMNOT+1,AC8+(AB8>AC8)))-MAX(ININOT,AB8)+(MIN(FIMNOT,AC8+(AB8>AC8))-MIN(FIMNOT,AB8)))+IF(AND(I8="",J8=""),0,MAX(ININOT,MIN(FIMNOT+1,AE8+(AD8>AE8)))-MAX(ININOT,AD8)+(MIN(FIMNOT,AE8+(AD8>AE8))-MIN(FIMNOT,AD8)))) -> 00:00:00 | M8: =IF(B8="","",(L8/7*8)-L8) -> 00:00:00 | N8: =IF(B8="","",L8+M8) -> 00:00:00 | O8: =IF(B8="","",MOD((AA8-Z8)+(AC8-AB8)+(AE8-AD8),1)+M8) -> 00:00:00 | P8: =IF(B8="","",IF(D8="F",$X$16,VLOOKUP(A8,jornada,3))) -> 07:20:00 | Q8: =IF(B8="","",IF(AND(D8="A",P8>O8),P8-O8,"")) ->  | R8: =IF(B8="","",IF(AND(O8>0,D8="F"),"",IF(D8="A","",IF(O8<P8,P8-O8,"")))) -> 07:20:00 | S8: =IF(B8="","",IF(AND(WEEKDAY(B8,1)=7,P8=0,D8<>"F"),MAX(0,O8-P8),IF(P8=0,0,MAX(0,O8-P8)))) -> 00:00:00 | T8: =IF(B8="","",IF(AND(WEEKDAY(B8,1)=7,P8=0,D8<>"F"),0,IF(P8=0,O8,0))) -> 00:00:00 | V8: 1 | W8: domingo | X8: 07:20:00 | Z8: =IF(B8="","",IF($E8="",0,TIME(INT(E8/100),MOD(E8,100),0))) -> 00:00:00 | AA8: =IF(B8="","",IF($F8="",0,TIME(INT(F8/100),MOD(F8,100),0))) -> 00:00:00 | AB8: =IF(B8="","",IF($G8="",0,TIME(INT(G8/100),MOD(G8,100),0))) -> 00:00:00 | AC8: =IF(B8="","",IF($H8="",0,TIME(INT(H8/100),MOD(H8,100),0))) -> 00:00:00 | AD8: =IF(B8="","",IF($I8="",0,TIME(INT(I8/100),MOD(I8,100),0))) -> 00:00:00 | AE8: =IF(B8="","",IF($J8="",0,TIME(INT(J8/100),MOD(J8,100),0))) -> 00:00:00
A9: =IF(B9="","",IF(C9<>"feriado",WEEKDAY(B9),8)) -> 7 | B9: =B8+1 -> 2023-12-02 | C9: =IF(B9="","",IF(COUNTIF(fer,B9)>0,"feriado",B9)) -> 2023-12-02 | K9: =IF(B9="","",ROUND(O9-N9,5)) -> 00:00:00 | L9: 00:00:00 | M9: =IF(B9="","",(L9/7*8)-L9) -> 00:00:00 | N9: =IF(B9="","",L9+M9) -> 00:00:00 | O9: =IF(B9="","",MOD((AA9-Z9)+(AC9-AB9)+(AE9-AD9),1)+M9) -> 00:00:00 | P9: 07:20:00 | Q9: =IF(B9="","",IF(AND(D9="A",P9>O9),P9-O9,"")) ->  | R9: =IF(B9="","",IF(AND(O9>0,D9="F"),"",IF(D9="A","",IF(O9<P9,P9-O9,"")))) -> 07:20:00 | S9: =IF(B9="","",IF(AND(WEEKDAY(B9,1)=7,P9=0,D9<>"F"),MAX(0,O9-P9),IF(P9=0,0,MAX(0,O9-P9)))) -> 00:00:00 | T9: =IF(B9="","",IF(AND(WEEKDAY(B9,1)=7,P9=0,D9<>"F"),0,IF(P9=0,O9,0))) -> 00:00:00 | V9: 2 | W9: Segunda-feira | X9: 07:20:00 | Z9: =IF(B9="","",IF($E9="",0,TIME(INT(E9/100),MOD(E9,100),0))) -> 00:00:00 | AA9: =IF(B9="","",IF($F9="",0,TIME(INT(F9/100),MOD(F9,100),0))) -> 00:00:00 | AB9: =IF(B9="","",IF($G9="",0,TIME(INT(G9/100),MOD(G9,100),0))) -> 00:00:00 | AC9: =IF(B9="","",IF($H9="",0,TIME(INT(H9/100),MOD(H9,100),0))) -> 00:00:00 | AD9: =IF(B9="","",IF($I9="",0,TIME(INT(I9/100),MOD(I9,100),0))) -> 00:00:00 | AE9: =IF(B9="","",IF($J9="",0,TIME(INT(J9/100),MOD(J9,100),0))) -> 00:00:00
A10: 1 | B10: =B9+1 -> 2023-12-03 | C10: 2023-12-03 | K10: 00:00:00 | L10: 00:00:00 | M10: 00:00:00 | N10: 00:00:00 | O10: 00:00:00 | P10: 07:20:00 | R10: 07:20:00 | S10: 00:00:00 | T10: 00:00:00 | V10: 3 | W10: Terça-feira | X10: 07:20:00 | Z10: 00:00:00 | AA10: 00:00:00 | AB10: 00:00:00 | AC10: 00:00:00 | AD10: 00:00:00 | AE10: 00:00:00
A11: 2 | B11: =B10+1 -> 2023-12-04 | C11: 2023-12-04 | K11: 00:00:00 | L11: 00:00:00 | M11: 00:00:00 | N11: 00:00:00 | O11: 00:00:00 | P11: 07:20:00 | R11: 07:20:00 | S11: 00:00:00 | T11: 00:00:00 | V11: 4 | W11: Quarta-feira | X11: 07:20:00 | Z11: 00:00:00 | AA11: 00:00:00 | AB11: 00:00:00 | AC11: 00:00:00 | AD11: 00:00:00 | AE11: 00:00:00
A12: 3 | B12: =B11+1 -> 2023-12-05 | C12: 2023-12-05 | K12: 00:00:00 | L12: 00:00:00 | M12: 00:00:00 | N12: 00:00:00 | O12: 00:00:00 | P12: 07:20:00 | R12: 07:20:00 | S12: 00:00:00 | T12: 00:00:00 | V12: 5 | W12: Quinta-feira | X12: 07:20:00 | Z12: 00:00:00 | AA12: 00:00:00 | AB12: 00:00:00 | AC12: 00:00:00 | AD12: 00:00:00 | AE12: 00:00:00
A13: 4 | B13: =B12+1 -> 2023-12-06 | C13: 2023-12-06 | K13: 00:00:00 | L13: 00:00:00 | M13: 00:00:00 | N13: 00:00:00 | O13: 00:00:00 | P13: 07:20:00 | R13: 07:20:00 | S13: 00:00:00 | T13: 00:00:00 | V13: 6 | W13: Sexta-feira | X13: 07:20:00 | Z13: 00:00:00 | AA13: 00:00:00 | AB13: 00:00:00 | AC13: 00:00:00 | AD13: 00:00:00 | AE13: 00:00:00
A14: 5 | B14: 2023-12-07 | C14: 2023-12-07 | K14: 00:00:00 | L14: 00:00:00 | M14: 00:00:00 | N14: 00:00:00 | O14: 00:00:00 | P14: 07:20:00 | R14: 07:20:00 | S14: 00:00:00 | T14: 00:00:00 | V14: 7 | W14: Sábado | X14: 07:20:00 | Z14: 00:00:00 | AA14: 00:00:00 | AB14: 00:00:00 | AC14: 00:00:00 | AD14: 00:00:00 | AE14: 00:00:00
A15: 6 | B15: 2023-12-08 | C15: 2023-12-08 | K15: 00:00:00 | L15: 00:00:00 | M15: 00:00:00 | N15: 00:00:00 | O15: 00:00:00 | P15: 07:20:00 | R15: 07:20:00 | S15: 00:00:00 | T15: 00:00:00 | V15: 8 | W15: Feriados | X15: 07:20:00 | Z15: 00:00:00 | AA15: 00:00:00 | AB15: 00:00:00 | AC15: 00:00:00 | AD15: 00:00:00 | AE15: 00:00:00
A16: 7 | B16: 2023-12-09 | C16: 2023-12-09 | K16: 00:00:00 | L16: 00:00:00 | M16: 00:00:00 | N16: 00:00:00 | O16: 00:00:00 | P16: 07:20:00 | R16: 07:20:00 | S16: 00:00:00 | T16: 00:00:00 | W16: Folgas | X16: 00:00:00 | Z16: 00:00:00 | AA16: 00:00:00 | AB16: 00:00:00 | AC16: 00:00:00 | AD16: 00:00:00 | AE16: 00:00:00
A17: 1 | B17: 2023-12-10 | C17: 2023-12-10 | K17: 00:00:00 | L17: 00:00:00 | M17: 00:00:00 | N17: 00:00:00 | O17: 00:00:00 | P17: 07:20:00 | R17: 07:20:00 | S17: 00:00:00 | T17: 00:00:00 | W17: HORÁRIO NOTURNO | Z17: 00:00:00 | AA17: 00:00:00 | AB17: 00:00:00 | AC17: 00:00:00 | AD17: 00:00:00 | AE17: 00:00:00
A18: 2 | B18: 2023-12-11 | C18: 2023-12-11 | K18: 00:00:00 | L18: 00:00:00 | M18: 00:00:00 | N18: 00:00:00 | O18: 00:00:00 | P18: 07:20:00 | R18: 07:20:00 | S18: 00:00:00 | T18: 00:00:00 | W18: Início | X18: =ININOT -> 22:00:00 | Z18: 00:00:00 | AA18: 00:00:00 | AB18: 00:00:00 | AC18: 00:00:00 | AD18: 00:00:00 | AE18: 00:00:00
A19: 3 | B19: 2023-12-12 | C19: 2023-12-12 | K19: 00:00:00 | L19: 00:00:00 | M19: 00:00:00 | N19: 00:00:00 | O19: 00:00:00 | P19: 07:20:00 | R19: 07:20:00 | S19: 00:00:00 | T19: 00:00:00 | W19: Término | X19: =FIMNOT -> 05:00:00 | Z19: 00:00:00 | AA19: 00:00:00 | AB19: 00:00:00 | AC19: 00:00:00 | AD19: 00:00:00 | AE19: 00:00:00
A20: 4 | B20: 2023-12-13 | C20: 2023-12-13 | K20: 00:00:00 | L20: 00:00:00 | M20: 00:00:00 | N20: 00:00:00 | O20: 00:00:00 | P20: 07:20:00 | R20: 07:20:00 | S20: 00:00:00 | T20: 00:00:00 | W20: FECHAMENTO DO PONTO | Z20: 00:00:00 | AA20: 00:00:00 | AB20: 00:00:00 | AC20: 00:00:00 | AD20: 00:00:00 | AE20: 00:00:00
A21: 5 | B21: 2023-12-14 | C21: 2023-12-14 | K21: 00:00:00 | L21: 00:00:00 | M21: 00:00:00 | N21: 00:00:00 | O21: 00:00:00 | P21: 07:20:00 | R21: 07:20:00 | S21: 00:00:00 | T21: 00:00:00 | W21: Dia do fechamento do ponto: | X21: =IF(dia_f="","",dia_f) ->  | Z21: 00:00:00 | AA21: 00:00:00 | AB21: 00:00:00 | AC21: 00:00:00 | AD21: 00:00:00 | AE21: 00:00:00
A22: 6 | B22: 2023-12-15 | C22: 2023-12-15 | K22: 00:00:00 | L22: 00:00:00 | M22: 00:00:00 | N22: 00:00:00 | O22: 00:00:00 | P22: 07:20:00 | R22: 07:20:00 | S22: 00:00:00 | T22: 00:00:00 | Z22: 00:00:00 | AA22: 00:00:00 | AB22: 00:00:00 | AC22: 00:00:00 | AD22: 00:00:00 | AE22: 00:00:00
A23: 7 | B23: 2023-12-16 | C23: 2023-12-16 | K23: 00:00:00 | L23: 00:00:00 | M23: 00:00:00 | N23: 00:00:00 | O23: 00:00:00 | P23: 07:20:00 | R23: 07:20:00 | S23: 00:00:00 | T23: 00:00:00 | Z23: 00:00:00 | AA23: 00:00:00 | AB23: 00:00:00 | AC23: 00:00:00 | AD23: 00:00:00 | AE23: 00:00:00
A24: 1 | B24: 2023-12-17 | C24: 2023-12-17 | K24: 00:00:00 | L24: 00:00:00 | M24: 00:00:00 | N24: 00:00:00 | O24: 00:00:00 | P24: 07:20:00 | R24: 07:20:00 | S24: 00:00:00 | T24: 00:00:00 | Z24: 00:00:00 | AA24: 00:00:00 | AB24: 00:00:00 | AC24: 00:00:00 | AD24: 00:00:00 | AE24: 00:00:00
A25: 2 | B25: 2023-12-18 | C25: 2023-12-18 | K25: 00:00:00 | L25: 00:00:00 | M25: 00:00:00 | N25: 00:00:00 | O25: 00:00:00 | P25: 07:20:00 | R25: 07:20:00 | S25: 00:00:00 | T25: 00:00:00 | W25: Adicional Noturno: | X25: =N39 -> 00:00:00 | Z25: 00:00:00 | AA25: 00:00:00 | AB25: 00:00:00 | AC25: 00:00:00 | AD25: 00:00:00 | AE25: 00:00:00
A26: 3 | B26: 2023-12-19 | C26: 2023-12-19 | K26: 00:00:00 | L26: 00:00:00 | M26: 00:00:00 | N26: 00:00:00 | O26: 00:00:00 | P26: 07:20:00 | R26: 07:20:00 | S26: 00:00:00 | T26: 00:00:00 | W26: Horas Trabalhadas: | X26: =O39 -> 0 | Z26: 00:00:00 | AA26: 00:00:00 | AB26: 00:00:00 | AC26: 00:00:00 | AD26: 00:00:00 | AE26: 00:00:00
A27: 4 | B27: 2023-12-20 | C27: 2023-12-20 | K27: 00:00:00 | L27: 00:00:00 | M27: 00:00:00 | N27: 00:00:00 | O27: 00:00:00 | P27: 07:20:00 | R27: 07:20:00 | S27: 00:00:00 | T27: 00:00:00 | W27: Ausências Injustificadas: | X27: =Q39 -> 0 | Z27: 00:00:00 | AA27: 00:00:00 | AB27: 00:00:00 | AC27: 00:00:00 | AD27: 00:00:00 | AE27: 00:00:00
A28: 5 | B28: 2023-12-21 | C28: 2023-12-21 | K28: 00:00:00 | L28: 00:00:00 | M28: 00:00:00 | N28: 00:00:00 | O28: 00:00:00 | P28: 07:20:00 | R28: 07:20:00 | S28: 00:00:00 | T28: 00:00:00 | W28: Horas Compensadas: | X28: =R39 -> 10.38055556 | Z28: 00:00:00 | AA28: 00:00:00 | AB28: 00:00:00 | AC28: 00:00:00 | AD28: 00:00:00 | AE28: 00:00:00
A29: 6 | B29: 2023-12-22 | C29: 2023-12-22 | K29: 00:00:00 | L29: 00:00:00 | M29: 00:00:00 | N29: 00:00:00 | O29: 00:00:00 | P29: 07:20:00 | R29: 07:20:00 | S29: 00:00:00 | T29: 00:00:00 | W29: Horas Extras: | X29: =S39 -> 0 | Z29: 00:00:00 | AA29: 00:00:00 | AB29: 00:00:00 | AC29: 00:00:00 | AD29: 00:00:00 | AE29: 00:00:00
A30: 7 | B30: 2023-12-23 | C30: 2023-12-23 | K30: 00:00:00 | L30: 00:00:00 | M30: 00:00:00 | N30: 00:00:00 | O30: 00:00:00 | P30: 07:20:00 | R30: 07:20:00 | S30: 00:00:00 | T30: 00:00:00 | W30: Folgas Trabalhadas: | X30: =T39 -> 0 | Z30: 00:00:00 | AA30: 00:00:00 | AB30: 00:00:00 | AC30: 00:00:00 | AD30: 00:00:00 | AE30: 00:00:00
A31: 1 | B31: 2023-12-24 | C31: =IF(B31="","",IF(COUNTIF(fer,B31)>0,"feriado",B31)) -> 2023-12-24 | K31: 00:00:00 | L31: 00:00:00 | M31: 00:00:00 | N31: 00:00:00 | O31: 00:00:00 | P31: 07:20:00 | R31: 07:20:00 | S31: 00:00:00 | T31: 00:00:00 | Z31: 00:00:00 | AA31: 00:00:00 | AB31: 00:00:00 | AC31: 00:00:00 | AD31: 00:00:00 | AE31: 00:00:00
A32: 8 | B32: 2023-12-25 | C32: feriado | K32: 00:00:00 | L32: 00:00:00 | M32: 00:00:00 | N32: 00:00:00 | O32: 00:00:00 | P32: 07:20:00 | R32: 07:20:00 | S32: 00:00:00 | T32: 00:00:00 | W32: =IF(X28-X29=0,0,(IF(X28-X29<0,"Horas Extras","Horas Compensadas"))) -> Horas Compensadas | X32: =IF(X28-X29<0,(X28*-1)-(X29*-1),X28-X29) -> 10.38055556 | Z32: 00:00:00 | AA32: 00:00:00 | AB32: 00:00:00 | AC32: 00:00:00 | AD32: 00:00:00 | AE32: 00:00:00
A33: 3 | B33: 2023-12-26 | C33: 2023-12-26 | K33: 00:00:00 | L33: 00:00:00 | M33: 00:00:00 | N33: 00:00:00 | O33: 00:00:00 | P33: 07:20:00 | R33: 07:20:00 | S33: 00:00:00 | T33: 00:00:00 | Z33: 00:00:00 | AA33: 00:00:00 | AB33: 00:00:00 | AC33: 00:00:00 | AD33: 00:00:00 | AE33: 00:00:00
A34: 4 | B34: 2023-12-27 | C34: 2023-12-27 | K34: 00:00:00 | L34: 00:00:00 | M34: 00:00:00 | N34: 00:00:00 | O34: 00:00:00 | P34: 07:20:00 | R34: 07:20:00 | S34: 00:00:00 | T34: 00:00:00 | Z34: 00:00:00 | AA34: 00:00:00 | AB34: 00:00:00 | AC34: 00:00:00 | AD34: 00:00:00 | AE34: 00:00:00
A35: 5 | B35: 2023-12-28 | C35: 2023-12-28 | K35: 00:00:00 | L35: 00:00:00 | M35: 00:00:00 | N35: 00:00:00 | O35: 00:00:00 | P35: 07:20:00 | R35: 07:20:00 | S35: 00:00:00 | T35: 00:00:00 | Z35: 00:00:00 | AA35: 00:00:00 | AB35: 00:00:00 | AC35: 00:00:00 | AD35: 00:00:00 | AE35: 00:00:00
A36: 6 | B36: =IF(B35="","",IF(B35>=W117,"",B35+1)) -> 2023-12-29 | C36: 2023-12-29 | K36: 00:00:00 | L36: 00:00:00 | M36: 00:00:00 | N36: 00:00:00 | O36: 00:00:00 | P36: 07:20:00 | R36: 07:20:00 | S36: 00:00:00 | T36: 00:00:00 | Z36: 00:00:00 | AA36: 00:00:00 | AB36: 00:00:00 | AC36: 00:00:00 | AD36: 00:00:00 | AE36: 00:00:00
A37: 7 | B37: =IF(B36="","",IF(B36>=W117,"",B36+1)) -> 2023-12-30 | C37: 2023-12-30 | K37: 00:00:00 | L37: 00:00:00 | M37: 00:00:00 | N37: 00:00:00 | O37: 00:00:00 | P37: 07:20:00 | R37: 07:20:00 | S37: 00:00:00 | T37: 00:00:00 | Z37: 00:00:00 | AA37: 00:00:00 | AB37: 00:00:00 | AC37: 00:00:00 | AD37: 00:00:00 | AE37: 00:00:00
A38: 1 | B38: =IF(B37="","",IF(B37>=W117,"",B37+1)) -> 2023-12-31 | C38: 2023-12-31 | K38: 00:00:00 | L38: 00:00:00 | M38: 00:00:00 | N38: 00:00:00 | O38: =IF(B38="","",MOD((AA38-Z38)+(AC38-AB38)+(AE38-AD38),1)+M38) -> 00:00:00 | P38: 07:20:00 | R38: 07:20:00 | S38: =IF(B38="","",IF(AND(WEEKDAY(B38,1)=7,P38=0,D38<>"F"),MAX(0,O38-P38),IF(P38=0,0,MAX(0,O38-P38)))) -> 00:00:00 | T38: =IF(B38="","",IF(AND(WEEKDAY(B38,1)=7,P38=0,D38="F"),0,IF(P38=0,O38,0))) -> 00:00:00 | Z38: 00:00:00 | AA38: 00:00:00 | AB38: 00:00:00 | AC38: 00:00:00 | AD38: 00:00:00 | AE38: 00:00:00
B39: Início | C39: Término | E39: fer | F39: dom | G39: mês | H39: dias úteis | K39: repousos | L39: dsr | M39: Total: | N39: =SUM(N8:N38) -> 0 | O39: =SUM(O8:O38) -> 0 | P39: Total: | Q39: =SUM(Q8:Q38) -> 0 | R39: =SUM(R7:R38) -> 10.38055556 | S39: =SUM(S7:S38) -> 0 | T39: =SUM(T8:T38) -> 0
B40: =B8 -> 2023-12-01 | C40: =MAX(B8:B38) -> 2023-12-31 | E40: =COUNTIF(C8:C38,"feriado") -> 1 | F40: =SUMPRODUCT((WEEKDAY(ROW(INDIRECT($B40&":"&$C40)))=1)*(COUNTIF(fer,ROW(INDIRECT($B40&":"&$C40)))=0)) -> 5 | G40: =C40-B40+1 -> 31 | H40: =G40-K40 -> 25 | K40: =E40+F40 -> 6 | L40: =H40&"/"&K40 -> 25/6 | M40: Decimal: | N40: =N39*24 -> 0.00 | O40: =O39*24 -> 0.00 | P40: Decimal: | Q40: =Q39*24 -> 0.00 | R40: 249.13 | S40: =S39*24 -> 0.00 | T40: =T39*24 -> 0.00
B41: =IF(dia_f="","",DATE(YEAR(W117),MONTH(W117),1)) ->  | C41: =IF(dia_f="","",EOMONTH(B41,0)) ->  | E41: =IF(B41="","",SUMPRODUCT(((WEEKDAY(fer)>1))*(fer>=B41)*(fer<=C41))) ->  | F41: =IF(B41="","",SUMPRODUCT((WEEKDAY(ROW(INDIRECT($B41&":"&$C41)))=1)*1)) ->  | G41: =IF(B41="","",DAY(C41)) ->  | H41: =IF(B41="","",SUMPRODUCT((WEEKDAY(ROW(INDIRECT(B41&":"&C41)))>1)*(COUNTIF(fer,ROW(INDIRECT(B41&":"&C41)))=0))) ->  | K41: =IF(B41="","",E41+F41) ->  | L41: =IF(B41="","",H41&"/"&K41) ->  | M41: Dsr: | N41: =N40/$H$40*$K$40 -> 0.00
M42: =IF(B41="","","Dsr mês:") ->  | N42: =IF(B41="","",N40/H41*K41) ->  | O42: =IF(B41="","","Dsr mês:") ->  | S42: =IF(B41="","",S40/$H$41*$K$41) ->  | T42: =IF(B41="","",T40/$H$41*$K$41) -> 
W116: =B8 -> 2023-12-01 | X116: Data de início:
W117: =IF(DAY(B8)=1,EOMONTH(B8,0),DATE(YEAR(B8),MONTH(B8)+1,dia_f)) -> 2023-12-31 | X117: Data final:
D119: Meses | F119: Anos
D120: 1 | F120: 2020
D121: 2 | F121: 2021
D122: 3 | F122: 2022
D123: 4 | F123: 2023
D124: 5 | F124: 2024
D125: 6 | F125: 2025
D126: 7 | F126: 2026
D127: 8 | F127: 2027
D128: 9 | F128: 2028
D129: 10 | F129: 2029
D130: 11 | F130: 2030
D131: 12 | F131: 2031

Sheet Janeiro
E1: =CHOOSE(MONTH(W117),"Janeiro","Fevereiro","Março","Abril","Maio","Junho","Julho","Agosto","Setembro","Outubro","Novembro","Dezembro") -> Janeiro
B5: Empregado : | D5: =Outubro!D5 -> Alexandre José de Souza Silva | I5: Setor : | O5: Unidade :
B6: Data | C6: Dia Semana | D6: Folgas | E6: Entrada | F6: Saída | G6: Entrada | H6: Saída | I6: Entrada | J6: Saída | K6: Horas Diurnas | L6: H. Not. s/ red. | M6: Hora Ficta | N6: Adicional Noturno | O6: H. Trab. | P6: H. Normais | Q6: Ausências In-justificadas | R6: Compen-sadas | S6: H. Extras | T6: HE 100% | W6: JORNADA CONTRATUAL | Z6: CARTÃO PONTO ESPELHO
B7: Saldo anterior | R7: =IF(Dezembro!W32="Horas Compensadas",Dezembro!X32,0) -> 10.38055556 | S7: =IF(Dezembro!W32="Horas Extras",Dezembro!X32,0) -> 0 | Z7: Entrada | AA7: Saída | AB7: Entrada | AC7: Saída | AD7: Entrada | AE7: Saída
A8: =IF(B8="","",IF(C8<>"feriado",WEEKDAY(B8),8)) -> 8 | B8: =EDATE(inicio,3) -> 2024-01-01 | C8: =IF(B8="","",IF(COUNTIF(fer,B8)>0,"feriado",B8)) -> feriado | K8: =IF(B8="","",ROUND(O8-N8,5)) -> 00:00:00 | L8: =IF(B8="","",IF(AND(E8="",F8=""),0,MAX(ININOT,MIN(FIMNOT+1,AA8+(Z8>AA8)))-MAX(ININOT,Z8)+(MIN(FIMNOT,AA8+(Z8>AA8)))-MIN(FIMNOT,Z8))+IF(AND(G8="",H8=""),0,MAX(ININOT,MIN(FIMNOT+1,AC8+(AB8>AC8)))-MAX(ININOT,AB8)+(MIN(FIMNOT,AC8+(AB8>AC8))-MIN(FIMNOT,AB8)))+IF(AND(I8="",J8=""),0,MAX(ININOT,MIN(FIMNOT+1,AE8+(AD8>AE8)))-MAX(ININOT,AD8)+(MIN(FIMNOT,AE8+(AD8>AE8))-MIN(FIMNOT,AD8)))) -> 00:00:00 | M8: =IF(B8="","",(L8/7*8)-L8) -> 00:00:00 | N8: =IF(B8="","",L8+M8) -> 00:00:00 | O8: =IF(B8="","",MOD((AA8-Z8)+(AC8-AB8)+(AE8-AD8),1)+M8) -> 00:00:00 | P8: =IF(B8="","",IF(D8="F",$X$16,VLOOKUP(A8,jornada,3))) -> 07:20:00 | Q8: =IF(B8="","",IF(AND(D8="A",P8>O8),P8-O8,"")) ->  | R8: =IF(B8="","",IF(AND(O8>0,D8="F"),"",IF(D8="A","",IF(O8<P8,P8-O8,"")))) -> 07:20:00 | S8: =IF(B8="","",IF(AND(WEEKDAY(B8,1)=7,P8=0,D8<>"F"),MAX(0,O8-P8),IF(P8=0,0,MAX(0,O8-P8)))) -> 00:00:00 | T8: =IF(B8="","",IF(AND(WEEKDAY(B8,1)=7,P8=0,D8<>"F"),0,IF(P8=0,O8,0))) -> 00:00:00 | V8: 1 | W8: domingo | X8: 07:20:00 | Z8: =IF(B8="","",IF($E8="",0,TIME(INT(E8/100),MOD(E8,100),0))) -> 00:00:00 | AA8: =IF(B8="","",IF($F8="",0,TIME(INT(F8/100),MOD(F8,100),0))) -> 00:00:00 | AB8: =IF(B8="","",IF($G8="",0,TIME(INT(G8/100),MOD(G8,100),0))) -> 00:00:00 | AC8: =IF(B8="","",IF($H8="",0,TIME(INT(H8/100),MOD(H8,100),0))) -> 00:00:00 | AD8: =IF(B8="","",IF($I8="",0,TIME(INT(I8/100),MOD(I8,100),0))) -> 00:00:00 | AE8: =IF(B8="","",IF($J8="",0,TIME(INT(J8/100),MOD(J8,100),0))) -> 00:00:00
A9: =IF(B9="","",IF(C9<>"feriado",WEEKDAY(B9),8)) -> 3 | B9: =B8+1 -> 2024-01-02 | C9: =IF(B9="","",IF(COUNTIF(fer,B9)>0,"feriado",B9)) -> 2024-01-02 | K9: =IF(B9="","",ROUND(O9-N9,5)) -> 00:00:00 | L9: 00:00:00 | M9: =IF(B9="","",(L9/7*8)-L9) -> 00:00:00 | N9: =IF(B9="","",L9+M9) -> 00:00:00 | O9: =IF(B9="","",MOD((AA9-Z9)+(AC9-AB9)+(AE9-AD9),1)+M9) -> 00:00:00 | P9: 07:20:00 | Q9: =IF(B9="","",IF(AND(D9="A",P9>O9),P9-O9,"")) ->  | R9: =IF(B9="","",IF(AND(O9>0,D9="F"),"",IF(D9="A","",IF(O9<P9,P9-O9,"")))) -> 07:20:00 | S9: =IF(B9="","",IF(AND(WEEKDAY(B9,1)=7,P9=0,D9<>"F"),MAX(0,O9-P9),IF(P9=0,0,MAX(0,O9-P9)))) -> 00:00:00 | T9: =IF(B9="","",IF(AND(WEEKDAY(B9,1)=7,P9=0,D9<>"F"),0,IF(P9=0,O9,0))) -> 00:00:00 | V9: 2 | W9: Segunda-feira | X9: 07:20:00 | Z9: =IF(B9="","",IF($E9="",0,TIME(INT(E9/100),MOD(E9,100),0))) -> 00:00:00 | AA9: =IF(B9="","",IF($F9="",0,TIME(INT(F9/100),MOD(F9,100),0))) -> 00:00:00 | AB9: =IF(B9="","",IF($G9="",0,TIME(INT(G9/100),MOD(G9,100),0))) -> 00:00:00 | AC9: =IF(B9="","",IF($H9="",0,TIME(INT(H9/100),MOD(H9,100),0))) -> 00:00:00 | AD9: =IF(B9="","",IF($I9="",0,TIME(INT(I9/100),MOD(I9,100),0))) -> 00:00:00 | AE9: =IF(B9="","",IF($J9="",0,TIME(INT(J9/100),MOD(J9,100),0))) -> 00:00:00
A10: 4 | B10: =B9+1 -> 2024-01-03 | C10: 2024-01-03 | K10: 00:00:00 | L10: 00:00:00 | M10: 00:00:00 | N10: 00:00:00 | O10: 00:00:00 | P10: 07:20:00 | R10: 07:20:00 | S10: 00:00:00 | T10: 00:00:00 | V10: 3 | W10: Terça-feira | X10: 07:20:00 | Z10: 00:00:00 | AA10: 00:00:00 | AB10: 00:00:00 | AC10: 00:00:00 | AD10: 00:00:00 | AE10: 00:00:00
A11: 5 | B11: =B10+1 -> 2024-01-04 | C11: 2024-01-04 | K11: 00:00:00 | L11: 00:00:00 | M11: 00:00:00 | N11: 00:00:00 | O11: 00:00:00 | P11: 07:20:00 | R11: 07:20:00 | S11: 00:00:00 | T11: 00:00:00 | V11: 4 | W11: Quarta-feira | X11: 07:20:00 | Z11: 00:00:00 | AA11: 00:00:00 | AB11: 00:00:00 | AC11: 00:00:00 | AD11: 00:00:00 | AE11: 00:00:00
A12: 6 | B12: =B11+1 -> 2024-01-05 | C12: 2024-01-05 | K12: 00:00:00 | L12: 00:00:00 | M12: 00:00:00 | N12: 00:00:00 | O12: 00:00:00 | P12: 07:20:00 | R12: 07:20:00 | S12: 00:00:00 | T12: 00:00:00 | V12: 5 | W12: Quinta-feira | X12: 07:20:00 | Z12: 00:00:00 | AA12: 00:00:00 | AB12: 00:00:00 | AC12: 00:00:00 | AD12: 00:00:00 | AE12: 00:00:00
A13: 7 | B13: =B12+1 -> 2024-01-06 | C13: 2024-01-06 | K13: 00:00:00 | L13: 00:00:00 | M13: 00:00:00 | N13: 00:00:00 | O13: 00:00:00 | P13: 07:20:00 | R13: 07:20:00 | S13: 00:00:00 | T13: 00:00:00 | V13: 6 | W13: Sexta-feira | X13: 07:20:00 | Z13: 00:00:00 | AA13: 00:00:00 | AB13: 00:00:00 | AC13: 00:00:00 | AD13: 00:00:00 | AE13: 00:00:00
A14: 1 | B14: 2024-01-07 | C14: 2024-01-07 | K14: 00:00:00 | L14: 00:00:00 | M14: 00:00:00 | N14: 00:00:00 | O14: 00:00:00 | P14: 07:20:00 | R14: 07:20:00 | S14: 00:00:00 | T14: 00:00:00 | V14: 7 | W14: Sábado | X14: 07:20:00 | Z14: 00:00:00 | AA14: 00:00:00 | AB14: 00:00:00 | AC14: 00:00:00 | AD14: 00:00:00 | AE14: 00:00:00
A15: 2 | B15: 2024-01-08 | C15: 2024-01-08 | K15: 00:00:00 | L15: 00:00:00 | M15: 00:00:00 | N15: 00:00:00 | O15: 00:00:00 | P15: 07:20:00 | R15: 07:20:00 | S15: 00:00:00 | T15: 00:00:00 | V15: 8 | W15: Feriados | X15: 07:20:00 | Z15: 00:00:00 | AA15: 00:00:00 | AB15: 00:00:00 | AC15: 00:00:00 | AD15: 00:00:00 | AE15: 00:00:00
A16: 3 | B16: 2024-01-09 | C16: 2024-01-09 | K16: 00:00:00 | L16: 00:00:00 | M16: 00:00:00 | N16: 00:00:00 | O16: 00:00:00 | P16: 07:20:00 | R16: 07:20:00 | S16: 00:00:00 | T16: 00:00:00 | W16: Folgas | X16: 00:00:00 | Z16: 00:00:00 | AA16: 00:00:00 | AB16: 00:00:00 | AC16: 00:00:00 | AD16: 00:00:00 | AE16: 00:00:00
A17: 4 | B17: 2024-01-10 | C17: 2024-01-10 | K17: 00:00:00 | L17: 00:00:00 | M17: 00:00:00 | N17: 00:00:00 | O17: 00:00:00 | P17: 07:20:00 | R17: 07:20:00 | S17: 00:00:00 | T17: 00:00:00 | W17: HORÁRIO NOTURNO | Z17: 00:00:00 | AA17: 00:00:00 | AB17: 00:00:00 | AC17: 00:00:00 | AD17: 00:00:00 | AE17: 00:00:00
A18: 5 | B18: 2024-01-11 | C18: 2024-01-11 | K18: 00:00:00 | L18: 00:00:00 | M18: 00:00:00 | N18: 00:00:00 | O18: 00:00:00 | P18: 07:20:00 | R18: 07:20:00 | S18: 00:00:00 | T18: 00:00:00 | W18: Início | X18: =ININOT -> 22:00:00 | Z18: 00:00:00 | AA18: 00:00:00 | AB18: 00:00:00 | AC18: 00:00:00 | AD18: 00:00:00 | AE18: 00:00:00
A19: 6 | B19: 2024-01-12 | C19: 2024-01-12 | K19: 00:00:00 | L19: 00:00:00 | M19: 00:00:00 | N19: 00:00:00 | O19: 00:00:00 | P19: 07:20:00 | R19: 07:20:00 | S19: 00:00:00 | T19: 00:00:00 | W19: Término | X19: =FIMNOT -> 05:00:00 | Z19: 00:00:00 | AA19: 00:00:00 | AB19: 00:00:00 | AC19: 00:00:00 | AD19: 00:00:00 | AE19: 00:00:00
A20: 7 | B20: 2024-01-13 | C20: 2024-01-13 | K20: 00:00:00 | L20: 00:00:00 | M20: 00:00:00 | N20: 00:00:00 | O20: 00:00:00 | P20: 07:20:00 | R20: 07:20:00 | S20: 00:00:00 | T20: 00:00:00 | W20: FECHAMENTO DO PONTO | Z20: 00:00:00 | AA20: 00:00:00 | AB20: 00:00:00 | AC20: 00:00:00 | AD20: 00:00:00 | AE20: 00:00:00
A21: 1 | B21: 2024-01-14 | C21: 2024-01-14 | K21: 00:00:00 | L21: 00:00:00 | M21: 00:00:00 | N21: 00:00:00 | O21: 00:00:00 | P21: 07:20:00 | R21: 07:20:00 | S21: 00:00:00 | T21: 00:00:00 | W21: Dia do fechamento do ponto: | X21: =IF(dia_f="","",dia_f) ->  | Z21: 00:00:00 | AA21: 00:00:00 | AB21: 00:00:00 | AC21: 00:00:00 | AD21: 00:00:00 | AE21: 00:00:00
A22: 2 | B22: 2024-01-15 | C22: 2024-01-15 | K22: 00:00:00 | L22: 00:00:00 | M22: 00:00:00 | N22: 00:00:00 | O22: 00:00:00 | P22: 07:20:00 | R22: 07:20:00 | S22: 00:00:00 | T22: 00:00:00 | Z22: 00:00:00 | AA22: 00:00:00 | AB22: 00:00:00 | AC22: 00:00:00 | AD22: 00:00:00 | AE22: 00:00:00
A23: 3 | B23: 2024-01-16 | C23: 2024-01-16 | K23: 00:00:00 | L23: 00:00:00 | M23: 00:00:00 | N23: 00:00:00 | O23: 00:00:00 | P23: 07:20:00 | R23: 07:20:00 | S23: 00:00:00 | T23: 00:00:00 | Z23: 00:00:00 | AA23: 00:00:00 | AB23: 00:00:00 | AC23: 00:00:00 | AD23: 00:00:00 | AE23: 00:00:00
A24: 4 | B24: 2024-01-17 | C24: 2024-01-17 | K24: 00:00:00 | L24: 00:00:00 | M24: 00:00:00 | N24: 00:00:00 | O24: 00:00:00 | P24: 07:20:00 | R24: 07:20:00 | S24: 00:00:00 | T24: 00:00:00 | Z24: 00:00:00 | AA24: 00:00:00 | AB24: 00:00:00 | AC24: 00:00:00 | AD24: 00:00:00 | AE24: 00:00:00
A25: 5 | B25: 2024-01-18 | C25: 2024-01-18 | K25: 00:00:00 | L25: 00:00:00 | M25: 00:00:00 | N25: 00:00:00 | O25: 00:00:00 | P25: 07:20:00 | R25: 07:20:00 | S25: 00:00:00 | T25: 00:00:00 | W25: Adicional Noturno: | X25: =N39 -> 00:00:00 | Z25: 00:00:00 | AA25: 00:00:00 | AB25: 00:00:00 | AC25: 00:00:00 | AD25: 00:00:00 | AE25: 00:00:00
A26: 6 | B26: 2024-01-19 | C26: 2024-01-19 | K26: 00:00:00 | L26: 00:00:00 | M26: 00:00:00 | N26: 00:00:00 | O26: 00:00:00 | P26: 07:20:00 | R26: 07:20:00 | S26: 00:00:00 | T26: 00:00:00 | W26: Horas Trabalhadas: | X26: =O39 -> 0 | Z26: 00:00:00 | AA26: 00:00:00 | AB26: 00:00:00 | AC26: 00:00:00 | AD26: 00:00:00 | AE26: 00:00:00
A27: 7 | B27: 2024-01-20 | C27: 2024-01-20 | K27: 00:00:00 | L27: 00:00:00 | M27: 00:00:00 | N27: 00:00:00 | O27: 00:00:00 | P27: 07:20:00 | R27: 07:20:00 | S27: 00:00:00 | T27: 00:00:00 | W27: Ausências Injustificadas: | X27: =Q39 -> 0 | Z27: 00:00:00 | AA27: 00:00:00 | AB27: 00:00:00 | AC27: 00:00:00 | AD27: 00:00:00 | AE27: 00:00:00
A28: 1 | B28: 2024-01-21 | C28: 2024-01-21 | K28: 00:00:00 | L28: 00:00:00 | M28: 00:00:00 | N28: 00:00:00 | O28: 00:00:00 | P28: 07:20:00 | R28: 07:20:00 | S28: 00:00:00 | T28: 00:00:00 | W28: Horas Compensadas: | X28: =R39 -> 19.85277778 | Z28: 00:00:00 | AA28: 00:00:00 | AB28: 00:00:00 | AC28: 00:00:00 | AD28: 00:00:00 | AE28: 00:00:00
A29: 2 | B29: 2024-01-22 | C29: 2024-01-22 | K29: 00:00:00 | L29: 00:00:00 | M29: 00:00:00 | N29: 00:00:00 | O29: 00:00:00 | P29: 07:20:00 | R29: 07:20:00 | S29: 00:00:00 | T29: 00:00:00 | W29: Horas Extras: | X29: =S39 -> 0 | Z29: 00:00:00 | AA29: 00:00:00 | AB29: 00:00:00 | AC29: 00:00:00 | AD29: 00:00:00 | AE29: 00:00:00
A30: 3 | B30: 2024-01-23 | C30: 2024-01-23 | K30: 00:00:00 | L30: 00:00:00 | M30: 00:00:00 | N30: 00:00:00 | O30: 00:00:00 | P30: 07:20:00 | R30: 07:20:00 | S30: 00:00:00 | T30: 00:00:00 | W30: Folgas Trabalhadas: | X30: =T39 -> 0 | Z30: 00:00:00 | AA30: 00:00:00 | AB30: 00:00:00 | AC30: 00:00:00 | AD30: 00:00:00 | AE30: 00:00:00
A31: 4 | B31: 2024-01-24 | C31: =IF(B31="","",IF(COUNTIF(fer,B31)>0,"feriado",B31)) -> 2024-01-24 | K31: 00:00:00 | L31: 00:00:00 | M31: 00:00:00 | N31: 00:00:00 | O31: 00:00:00 | P31: 07:20:00 | R31: 07:20:00 | S31: 00:00:00 | T31: 00:00:00 | Z31: 00:00:00 | AA31: 00:00:00 | AB31: 00:00:00 | AC31: 00:00:00 | AD31: 00:00:00 | AE31: 00:00:00
A32: 5 | B32: 2024-01-25 | C32: 2024-01-25 | K32: 00:00:00 | L32: 00:00:00 | M32: 00:00:00 | N32: 00:00:00 | O32: 00:00:00 | P32: 07:20:00 | R32: 07:20:00 | S32: 00:00:00 | T32: 00:00:00 | W32: =IF(X28-X29=0,0,(IF(X28-X29<0,"Horas Extras","Horas Compensadas"))) -> Horas Compensadas | X32: =IF(X28-X29<0,(X28*-1)-(X29*-1),X28-X29) -> 19.85277778 | Z32: 00:00:00 | AA32: 00:00:00 | AB32: 00:00:00 | AC32: 00:00:00 | AD32: 00:00:00 | AE32: 00:00:00
A33: 6 | B33: 2024-01-26 | C33: 2024-01-26 | K33: 00:00:00 | L33: 00:00:00 | M33: 00:00:00 | N33: 00:00:00 | O33: 00:00:00 | P33: 07:20:00 | R33: 07:20:00 | S33: 00:00:00 | T33: 00:00:00 | Z33: 00:00:00 | AA33: 00:00:00 | AB33: 00:00:00 | AC33: 00:00:00 | AD33: 00:00:00 | AE33: 00:00:00
A34: 7 | B34: 2024-01-27 | C34: 2024-01-27 | K34: 00:00:00 | L34: 00:00:00 | M34: 00:00:00 | N34: 00:00:00 | O34: 00:00:00 | P34: 07:20:00 | R34: 07:20:00 | S34: 00:00:00 | T34: 00:00:00 | Z34: 00:00:00 | AA34: 00:00:00 | AB34: 00:00:00 | AC34: 00:00:00 | AD34: 00:00:00 | AE34: 00:00:00
A35: 1 | B35: 2024-01-28 | C35: 2024-01-28 | K35: 00:00:00 | L35: 00:00:00 | M35: 00:00:00 | N35: 00:00:00 | O35: 00:00:00 | P35: 07:20:00 | R35: 07:20:00 | S35: 00:00:00 | T35: 00:00:00 | Z35: 00:00:00 | AA35: 00:00:00 | AB35: 00:00:00 | AC35: 00:00:00 | AD35: 00:00:00 | AE35: 00:00:00
A36: 2 | B36: =IF(B35="","",IF(B35>=W117,"",B35+1)) -> 2024-01-29 | C36: 2024-01-29 | K36: 00:00:00 | L36: 00:00:00 | M36: 00:00:00 | N36: 00:00:00 | O36: 00:00:00 | P36: 07:20:00 | R36: 07:20:00 | S36: 00:00:00 | T36: 00:00:00 | Z36: 00:00:00 | AA36: 00:00:00 | AB36: 00:00:00 | AC36: 00:00:00 | AD36: 00:00:00 | AE36: 00:00:00
A37: 3 | B37: =IF(B36="","",IF(B36>=W117,"",B36+1)) -> 2024-01-30 | C37: 2024-01-30 | K37: 00:00:00 | L37: 00:00:00 | M37: 00:00:00 | N37: 00:00:00 | O37: 00:00:00 | P37: 07:20:00 | R37: 07:20:00 | S37: 00:00:00 | T37: 00:00:00 | Z37: 00:00:00 | AA37: 00:00:00 | AB37: 00:00:00 | AC37: 00:00:00 | AD37: 00:00:00 | AE37: 00:00:00
A38: 4 | B38: =IF(B37="","",IF(B37>=W117,"",B37+1)) -> 2024-01-31 | C38: 2024-01-31 | K38: 00:00:00 | L38: =IF(B38="","",IF(AND(E38="",F38=""),0,MAX(ININOT,MIN(FIMNOT+1,AA38+(Z38>AA38)))-MAX(ININOT,Z38)+(MIN(FIMNOT,AA38+(Z38>AA38))-MIN(FIMNOT,Z38)))+IF(AND(G38="",H38=""),0,MAX(ININOT,MIN(FIMNOT+1,AC38+(AB38>AC38)))-MAX(ININOT,AB38)+(MIN(FIMNOT,AC38+(AB38>AC38))-MIN(FIMNOT,AB38)))+IF(AND(I38="",J38=""),0,MAX(ININOT,MIN(FIMNOT+1,AE38+(AD38>AE38)))-MAX(ININOT,AD38)+(MIN(FIMNOT,AE38+(AD38>AE38))-MIN(FIMNOT,AD38)))) -> 00:00:00 | M38: 00:00:00 | N38: 00:00:00 | O38: =IF(B38="","",MOD((AA38-Z38)+(AC38-AB38)+(AE38-AD38),1)+M38) -> 00:00:00 | P38: 07:20:00 | R38: 07:20:00 | S38: =IF(B38="","",IF(AND(WEEKDAY(B38,1)=7,P38=0,D38<>"F"),MAX(0,O38-P38),IF(P38=0,0,MAX(0,O38-P38)))) -> 00:00:00 | T38: =IF(B38="","",IF(AND(WEEKDAY(B38,1)=7,P38=0,D38="F"),0,IF(P38=0,O38,0))) -> 00:00:00 | Z38: 00:00:00 | AA38: 00:00:00 | AB38: 00:00:00 | AC38: 00:00:00 | AD38: 00:00:00 | AE38: 00:00:00
B39: Início | C39: Término | E39: fer | F39: dom | G39: mês | H39: dias úteis | K39: repousos | L39: dsr | M39: Total: | N39: =SUM(N8:N38) -> 0 | O39: =SUM(O8:O38) -> 0 | P39: Total: | Q39: =SUM(Q8:Q38) -> 0 | R39: =SUM(R7:R38) -> 19.85277778 | S39: =SUM(S7:S38) -> 0 | T39: =SUM(T8:T38) -> 0
B40: =B8 -> 2024-01-01 | C40: =MAX(B8:B38) -> 2024-01-31 | E40: =COUNTIF(C8:C38,"feriado") -> 1 | F40: =SUMPRODUCT((WEEKDAY(ROW(INDIRECT($B40&":"&$C40)))=1)*(COUNTIF(fer,ROW(INDIRECT($B40&":"&$C40)))=0)) -> 4 | G40: =C40-B40+1 -> 31 | H40: =G40-K40 -> 26 | K40: =E40+F40 -> 5 | L40: =H40&"/"&K40 -> 26/5 | M40: Decimal: | N40: =N39*24 -> 0.00 | O40: =O39*24 -> 0.00 | P40: Decimal: | Q40: =Q39*24 -> 0.00 | R40: 476.47 | S40: =S39*24 -> 0.00 | T40: =T39*24 -> 0.00
B41: =IF(dia_f="","",DATE(YEAR(W117),MONTH(W117),1)) ->  | C41: =IF(dia_f="","",EOMONTH(B41,0)) ->  | E41: =IF(B41="","",SUMPRODUCT(((WEEKDAY(fer)>1))*(fer>=B41)*(fer<=C41))) ->  | F41: =IF(B41="","",SUMPRODUCT((WEEKDAY(ROW(INDIRECT($B41&":"&$C41)))=1)*1)) ->  | G41: =IF(B41="","",DAY(C41)) ->  | H41: =IF(B41="","",SUMPRODUCT((WEEKDAY(ROW(INDIRECT(B41&":"&C41)))>1)*(COUNTIF(fer,ROW(INDIRECT(B41&":"&C41)))=0))) ->  | K41: =IF(B41="","",E41+F41) ->  | L41: =IF(B41="","",H41&"/"&K41) ->  | M41: Dsr: | N41: =N40/$H$40*$K$40 -> 0.00
M42: =IF(B41="","","Dsr mês:") ->  | N42: =IF(B41="","",N40/H41*K41) ->  | O42: =IF(B41="","","Dsr mês:") ->  | S42: =IF(B41="","",S40/$H$41*$K$41) ->  | T42: =IF(B41="","",T40/$H$41*$K$41) -> 
W116: =B8 -> 2024-01-01 | X116: Data de início:
W117: =IF(DAY(B8)=1,EOMONTH(B8,0),DATE(YEAR(B8),MONTH(B8)+1,dia_f)) -> 2024-01-31 | X117: Data final:
D119: Meses | F119: Anos
D120: 1 | F120: 2020
D121: 2 | F121: 2021
D122: 3 | F122: 2022
D123: 4 | F123: 2023
D124: 5 | F124: 2024
D125: 6 | F125: 2025
D126: 7 | F126: 2026
D127: 8 | F127: 2027
D128: 9 | F128: 2028
D129: 10 | F129: 2029
D130: 11 | F130: 2030
D131: 12 | F131: 2031

Sheet Fevereiro
E1: =CHOOSE(MONTH(W117),"Janeiro","Fevereiro","Março","Abril","Maio","Junho","Julho","Agosto","Setembro","Outubro","Novembro","Dezembro") -> Fevereiro
B5: Empregado : | D5: =Outubro!D5 -> Alexandre José de Souza Silva | I5: Setor : | O5: Unidade :
B6: Data | C6: Dia Semana | D6: Folgas | E6: Entrada | F6: Saída | G6: Entrada | H6: Saída | I6: Entrada | J6: Saída | K6: Horas Diurnas | L6: H. Not. s/ red. | M6: Hora Ficta | N6: Adicional Noturno | O6: H. Trab. | P6: H. Normais | Q6: Ausências In-justificadas | R6: Compen-sadas | S6: H. Extras | T6: HE 100% | W6: JORNADA CONTRATUAL | Z6: CARTÃO PONTO ESPELHO
B7: Saldo anterior | R7: =IF(Janeiro!W32="Horas Compensadas",Janeiro!X32,0) -> 19.85277778 | S7: =IF(Janeiro!W32="Horas Extras",Janeiro!X32,0) -> 0 | Z7: Entrada | AA7: Saída | AB7: Entrada | AC7: Saída | AD7: Entrada | AE7: Saída
A8: =IF(B8="","",IF(C8<>"feriado",WEEKDAY(B8),8)) -> 5 | B8: =EDATE(inicio,4) -> 2024-02-01 | C8: =IF(B8="","",IF(COUNTIF(fer,B8)>0,"feriado",B8)) -> 2024-02-01 | K8: =IF(B8="","",ROUND(O8-N8,5)) -> 00:00:00 | L8: =IF(B8="","",IF(AND(E8="",F8=""),0,MAX(ININOT,MIN(FIMNOT+1,AA8+(Z8>AA8)))-MAX(ININOT,Z8)+(MIN(FIMNOT,AA8+(Z8>AA8))-MIN(FIMNOT,Z8)))+IF(AND(G8="",H8=""),0,MAX(ININOT,MIN(FIMNOT+1,AC8+(AB8>AC8)))-MAX(ININOT,AB8)+(MIN(FIMNOT,AC8+(AB8>AC8))-MIN(FIMNOT,AB8)))+IF(AND(I8="",J8=""),0,MAX(ININOT,MIN(FIMNOT+1,AE8+(AD8>AE8)))-MAX(ININOT,AD8)+(MIN(FIMNOT,AE8+(AD8>AE8))-MIN(FIMNOT,AD8)))) -> 00:00:00 | M8: =IF(B8="","",(L8/7*8)-L8) -> 00:00:00 | N8: =IF(B8="","",L8+M8) -> 00:00:00 | O8: =IF(B8="","",MOD((AA8-Z8)+(AC8-AB8)+(AE8-AD8),1)+M8) -> 00:00:00 | P8: =IF(B8="","",IF(D8="F",$X$16,VLOOKUP(A8,jornada,3))) -> 07:20:00 | Q8: =IF(B8="","",IF(AND(D8="A",P8>O8),P8-O8,"")) ->  | R8: =IF(B8="","",IF(AND(O8>0,D8="F"),"",IF(D8="A","",IF(O8<P8,P8-O8,"")))) -> 07:20:00 | S8: =IF(B8="","",IF(AND(WEEKDAY(B8,1)=7,P8=0,D8<>"F"),MAX(0,O8-P8),IF(P8=0,0,MAX(0,O8-P8)))) -> 00:00:00 | T8: =IF(B8="","",IF(AND(WEEKDAY(B8,1)=7,P8=0,D8<>"F"),0,IF(P8=0,O8,0))) -> 00:00:00 | V8: 1 | W8: domingo | X8: 07:20:00 | Z8: =IF(B8="","",IF($E8="",0,TIME(INT(E8/100),MOD(E8,100),0))) -> 00:00:00 | AA8: =IF(B8="","",IF($F8="",0,TIME(INT(F8/100),MOD(F8,100),0))) -> 00:00:00 | AB8: =IF(B8="","",IF($G8="",0,TIME(INT(G8/100),MOD(G8,100),0))) -> 00:00:00 | AC8: =IF(B8="","",IF($H8="",0,TIME(INT(H8/100),MOD(H8,100),0))) -> 00:00:00 | AD8: =IF(B8="","",IF($I8="",0,TIME(INT(I8/100),MOD(I8,100),0))) -> 00:00:00 | AE8: =IF(B8="","",IF($J8="",0,TIME(INT(J8/100),MOD(J8,100),0))) -> 00:00:00
A9: =IF(B9="","",IF(C9<>"feriado",WEEKDAY(B9),8)) -> 6 | B9: =B8+1 -> 2024-02-02 | C9: =IF(B9="","",IF(COUNTIF(fer,B9)>0,"feriado",B9)) -> 2024-02-02 | K9: =IF(B9="","",ROUND(O9-N9,5)) -> 00:00:00 | L9: 00:00:00 | M9: =IF(B9="","",(L9/7*8)-L9) -> 00:00:00 | N9: =IF(B9="","",L9+M9) -> 00:00:00 | O9: =IF(B9="","",MOD((AA9-Z9)+(AC9-AB9)+(AE9-AD9),1)+M9) -> 00:00:00 | P9: 07:20:00 | Q9: =IF(B9="","",IF(AND(D9="A",P9>O9),P9-O9,"")) ->  | R9: =IF(B9="","",IF(AND(O9>0,D9="F"),"",IF(D9="A","",IF(O9<P9,P9-O9,"")))) -> 07:20:00 | S9: =IF(B9="","",IF(AND(WEEKDAY(B9,1)=7,P9=0,D9<>"F"),MAX(0,O9-P9),IF(P9=0,0,MAX(0,O9-P9)))) -> 00:00:00 | T9: =IF(B9="","",IF(AND(WEEKDAY(B9,1)=7,P9=0,D9<>"F"),0,IF(P9=0,O9,0))) -> 00:00:00 | V9: 2 | W9: Segunda-feira | X9: 07:20:00 | Z9: =IF(B9="","",IF($E9="",0,TIME(INT(E9/100),MOD(E9,100),0))) -> 00:00:00 | AA9: =IF(B9="","",IF($F9="",0,TIME(INT(F9/100),MOD(F9,100),0))) -> 00:00:00 | AB9: =IF(B9="","",IF($G9="",0,TIME(INT(G9/100),MOD(G9,100),0))) -> 00:00:00 | AC9: =IF(B9="","",IF($H9="",0,TIME(INT(H9/100),MOD(H9,100),0))) -> 00:00:00 | AD9: =IF(B9="","",IF($I9="",0,TIME(INT(I9/100),MOD(I9,100),0))) -> 00:00:00 | AE9: =IF(B9="","",IF($J9="",0,TIME(INT(J9/100),MOD(J9,100),0))) -> 00:00:00
A10: 7 | B10: =B9+1 -> 2024-02-03 | C10: 2024-02-03 | K10: 00:00:00 | L10: 00:00:00 | M10: 00:00:00 | N10: 00:00:00 | O10: 00:00:00 | P10: 07:20:00 | R10: 07:20:00 | S10: 00:00:00 | T10: 00:00:00 | V10: 3 | W10: Terça-feira | X10: 07:20:00 | Z10: 00:00:00 | AA10: 00:00:00 | AB10: 00:00:00 | AC10: 00:00:00 | AD10: 00:00:00 | AE10: 00:00:00
A11: 1 | B11: =B10+1 -> 2024-02-04 | C11: 2024-02-04 | K11: 00:00:00 | L11: 00:00:00 | M11: 00:00:00 | N11: 00:00:00 | O11: 00:00:00 | P11: 07:20:00 | R11: 07:20:00 | S11: 00:00:00 | T11: 00:00:00 | V11: 4 | W11: Quarta-feira | X11: 07:20:00 | Z11: 00:00:00 | AA11: 00:00:00 | AB11: 00:00:00 | AC11: 00:00:00 | AD11: 00:00:00 | AE11: 00:00:00
A12: 2 | B12: =B11+1 -> 2024-02-05 | C12: 2024-02-05 | K12: 00:00:00 | L12: 00:00:00 | M12: 00:00:00 | N12: 00:00:00 | O12: 00:00:00 | P12: 07:20:00 | R12: 07:20:00 | S12: 00:00:00 | T12: 00:00:00 | V12: 5 | W12: Quinta-feira | X12: 07:20:00 | Z12: 00:00:00 | AA12: 00:00:00 | AB12: 00:00:00 | AC12: 00:00:00 | AD12: 00:00:00 | AE12: 00:00:00
A13: 3 | B13: =B12+1 -> 2024-02-06 | C13: 2024-02-06 | K13: 00:00:00 | L13: 00:00:00 | M13: 00:00:00 | N13: 00:00:00 | O13: 00:00:00 | P13: 07:20:00 | R13: 07:20:00 | S13: 00:00:00 | T13: 00:00:00 | V13: 6 | W13: Sexta-feira | X13: 07:20:00 | Z13: 00:00:00 | AA13: 00:00:00 | AB13: 00:00:00 | AC13: 00:00:00 | AD13: 00:00:00 | AE13: 00:00:00
A14: 4 | B14: 2024-02-07 | C14: 2024-02-07 | K14: 00:00:00 | L14: 00:00:00 | M14: 00:00:00 | N14: 00:00:00 | O14: 00:00:00 | P14: 07:20:00 | R14: 07:20:00 | S14: 00:00:00 | T14: 00:00:00 | V14: 7 | W14: Sábado | X14: 07:20:00 | Z14: 00:00:00 | AA14: 00:00:00 | AB14: 00:00:00 | AC14: 00:00:00 | AD14: 00:00:00 | AE14: 00:00:00
A15: 5 | B15: 2024-02-08 | C15: 2024-02-08 | K15: 00:00:00 | L15: 00:00:00 | M15: 00:00:00 | N15: 00:00:00 | O15: 00:00:00 | P15: 07:20:00 | R15: 07:20:00 | S15: 00:00:00 | T15: 00:00:00 | V15: 8 | W15: Feriados | X15: 07:20:00 | Z15: 00:00:00 | AA15: 00:00:00 | AB15: 00:00:00 | AC15: 00:00:00 | AD15: 00:00:00 | AE15: 00:00:00
A16: 6 | B16: 2024-02-09 | C16: 2024-02-09 | K16: 00:00:00 | L16: 00:00:00 | M16: 00:00:00 | N16: 00:00:00 | O16: 00:00:00 | P16: 07:20:00 | R16: 07:20:00 | S16: 00:00:00 | T16: 00:00:00 | W16: Folgas | X16: 00:00:00 | Z16: 00:00:00 | AA16: 00:00:00 | AB16: 00:00:00 | AC16: 00:00:00 | AD16: 00:00:00 | AE16: 00:00:00
A17: 7 | B17: 2024-02-10 | C17: 2024-02-10 | K17: 00:00:00 | L17: 00:00:00 | M17: 00:00:00 | N17: 00:00:00 | O17: 00:00:00 | P17: 07:20:00 | R17: 07:20:00 | S17: 00:00:00 | T17: 00:00:00 | W17: HORÁRIO NOTURNO | Z17: 00:00:00 | AA17: 00:00:00 | AB17: 00:00:00 | AC17: 00:00:00 | AD17: 00:00:00 | AE17: 00:00:00
A18: 1 | B18: 2024-02-11 | C18: 2024-02-11 | K18: 00:00:00 | L18: 00:00:00 | M18: 00:00:00 | N18: 00:00:00 | O18: 00:00:00 | P18: 07:20:00 | R18: 07:20:00 | S18: 00:00:00 | T18: 00:00:00 | W18: Início | X18: =ININOT -> 22:00:00 | Z18: 00:00:00 | AA18: 00:00:00 | AB18: 00:00:00 | AC18: 00:00:00 | AD18: 00:00:00 | AE18: 00:00:00
A19: 2 | B19: 2024-02-12 | C19: 2024-02-12 | K19: 00:00:00 | L19: 00:00:00 | M19: 00:00:00 | N19: 00:00:00 | O19: 00:00:00 | P19: 07:20:00 | R19: 07:20:00 | S19: 00:00:00 | T19: 00:00:00 | W19: Término | X19: =FIMNOT -> 05:00:00 | Z19: 00:00:00 | AA19: 00:00:00 | AB19: 00:00:00 | AC19: 00:00:00 | AD19: 00:00:00 | AE19: 00:00:00
A20: 3 | B20: 2024-02-13 | C20: 2024-02-13 | K20: 00:00:00 | L20: 00:00:00 | M20: 00:00:00 | N20: 00:00:00 | O20: 00:00:00 | P20: 07:20:00 | R20: 07:20:00 | S20: 00:00:00 | T20: 00:00:00 | W20: FECHAMENTO DO PONTO | Z20: 00:00:00 | AA20: 00:00:00 | AB20: 00:00:00 | AC20: 00:00:00 | AD20: 00:00:00 | AE20: 00:00:00
A21: 4 | B21: 2024-02-14 | C21: 2024-02-14 | K21: 00:00:00 | L21: 00:00:00 | M21: 00:00:00 | N21: 00:00:00 | O21: 00:00:00 | P21: 07:20:00 | R21: 07:20:00 | S21: 00:00:00 | T21: 00:00:00 | W21: Dia do fechamento do ponto: | X21: =IF(dia_f="","",dia_f) ->  | Z21: 00:00:00 | AA21: 00:00:00 | AB21: 00:00:00 | AC21: 00:00:00 | AD21: 00:00:00 | AE21: 00:00:00
A22: 5 | B22: 2024-02-15 | C22: 2024-02-15 | K22: 00:00:00 | L22: 00:00:00 | M22: 00:00:00 | N22: 00:00:00 | O22: 00:00:00 | P22: 07:20:00 | R22: 07:20:00 | S22: 00:00:00 | T22: 00:00:00 | Z22: 00:00:00 | AA22: 00:00:00 | AB22: 00:00:00 | AC22: 00:00:00 | AD22: 00:00:00 | AE22: 00:00:00
A23: 6 | B23: 2024-02-16 | C23: 2024-02-16 | K23: 00:00:00 | L23: 00:00:00 | M23: 00:00:00 | N23: 00:00:00 | O23: 00:00:00 | P23: 07:20:00 | R23: 07:20:00 | S23: 00:00:00 | T23: 00:00:00 | Z23: 00:00:00 | AA23: 00:00:00 | AB23: 00:00:00 | AC23: 00:00:00 | AD23: 00:00:00 | AE23: 00:00:00
A24: 7 | B24: 2024-02-17 | C24: 2024-02-17 | K24: 00:00:00 | L24: 00:00:00 | M24: 00:00:00 | N24: 00:00:00 | O24: 00:00:00 | P24: 07:20:00 | R24: 07:20:00 | S24: 00:00:00 | T24: 00:00:00 | Z24: 00:00:00 | AA24: 00:00:00 | AB24: 00:00:00 | AC24: 00:00:00 | AD24: 00:00:00 | AE24: 00:00:00
A25: 1 | B25: 2024-02-18 | C25: 2024-02-18 | K25: 00:00:00 | L25: 00:00:00 | M25: 00:00:00 | N25: 00:00:00 | O25: 00:00:00 | P25: 07:20:00 | R25: 07:20:00 | S25: 00:00:00 | T25: 00:00:00 | W25: Adicional Noturno: | X25: =N39 -> 00:00:00 | Z25: 00:00:00 | AA25: 00:00:00 | AB25: 00:00:00 | AC25: 00:00:00 | AD25: 00:00:00 | AE25: 00:00:00
A26: 2 | B26: 2024-02-19 | C26: 2024-02-19 | K26: 00:00:00 | L26: 00:00:00 | M26: 00:00:00 | N26: 00:00:00 | O26: 00:00:00 | P26: 07:20:00 | R26: 07:20:00 | S26: 00:00:00 | T26: 00:00:00 | W26: Horas Trabalhadas: | X26: =O39 -> 0 | Z26: 00:00:00 | AA26: 00:00:00 | AB26: 00:00:00 | AC26: 00:00:00 | AD26: 00:00:00 | AE26: 00:00:00
A27: 3 | B27: 2024-02-20 | C27: 2024-02-20 | K27: 00:00:00 | L27: 00:00:00 | M27: 00:00:00 | N27: 00:00:00 | O27: 00:00:00 | P27: 07:20:00 | R27: 07:20:00 | S27: 00:00:00 | T27: 00:00:00 | W27: Ausências Injustificadas: | X27: =Q39 -> 0 | Z27: 00:00:00 | AA27: 00:00:00 | AB27: 00:00:00 | AC27: 00:00:00 | AD27: 00:00:00 | AE27: 00:00:00
A28: 4 | B28: 2024-02-21 | C28: 2024-02-21 | K28: 00:00:00 | L28: 00:00:00 | M28: 00:00:00 | N28: 00:00:00 | O28: 00:00:00 | P28: 07:20:00 | R28: 07:20:00 | S28: 00:00:00 | T28: 00:00:00 | W28: Horas Compensadas: | X28: =R39 -> 28.71388889 | Z28: 00:00:00 | AA28: 00:00:00 | AB28: 00:00:00 | AC28: 00:00:00 | AD28: 00:00:00 | AE28: 00:00:00
A29: 5 | B29: 2024-02-22 | C29: 2024-02-22 | K29: 00:00:00 | L29: 00:00:00 | M29: 00:00:00 | N29: 00:00:00 | O29: 00:00:00 | P29: 07:20:00 | R29: 07:20:00 | S29: 00:00:00 | T29: 00:00:00 | W29: Horas Extras: | X29: =S39 -> 0 | Z29: 00:00:00 | AA29: 00:00:00 | AB29: 00:00:00 | AC29: 00:00:00 | AD29: 00:00:00 | AE29: 00:00:00
A30: 6 | B30: 2024-02-23 | C30: 2024-02-23 | K30: 00:00:00 | L30: 00:00:00 | M30: 00:00:00 | N30: 00:00:00 | O30: 00:00:00 | P30: 07:20:00 | R30: 07:20:00 | S30: 00:00:00 | T30: 00:00:00 | W30: Folgas Trabalhadas: | X30: =T39 -> 0 | Z30: 00:00:00 | AA30: 00:00:00 | AB30: 00:00:00 | AC30: 00:00:00 | AD30: 00:00:00 | AE30: 00:00:00
A31: 7 | B31: 2024-02-24 | C31: =IF(B31="","",IF(COUNTIF(fer,B31)>0,"feriado",B31)) -> 2024-02-24 | K31: 00:00:00 | L31: 00:00:00 | M31: 00:00:00 | N31: 00:00:00 | O31: 00:00:00 | P31: 07:20:00 | R31: 07:20:00 | S31: 00:00:00 | T31: 00:00:00 | Z31: 00:00:00 | AA31: 00:00:00 | AB31: 00:00:00 | AC31: 00:00:00 | AD31: 00:00:00 | AE31: 00:00:00
A32: 1 | B32: 2024-02-25 | C32: 2024-02-25 | K32: 00:00:00 | L32: 00:00:00 | M32: 00:00:00 | N32: 00:00:00 | O32: 00:00:00 | P32: 07:20:00 | R32: 07:20:00 | S32: 00:00:00 | T32: 00:00:00 | W32: =IF(X28-X29=0,0,(IF(X28-X29<0,"Horas Extras","Horas Compensadas"))) -> Horas Compensadas | X32: =IF(X28-X29<0,(X28*-1)-(X29*-1),X28-X29) -> 28.71388889 | Z32: 00:00:00 | AA32: 00:00:00 | AB32: 00:00:00 | AC32: 00:00:00 | AD32: 00:00:00 | AE32: 00:00:00
A33: 2 | B33: 2024-02-26 | C33: 2024-02-26 | K33: 00:00:00 | L33: 00:00:00 | M33: 00:00:00 | N33: 00:00:00 | O33: 00:00:00 | P33: 07:20:00 | R33: 07:20:00 | S33: 00:00:00 | T33: 00:00:00 | Z33: 00:00:00 | AA33: 00:00:00 | AB33: 00:00:00 | AC33: 00:00:00 | AD33: 00:00:00 | AE33: 00:00:00
A34: 3 | B34: 2024-02-27 | C34: 2024-02-27 | K34: 00:00:00 | L34: 00:00:00 | M34: 00:00:00 | N34: 00:00:00 | O34: 00:00:00 | P34: 07:20:00 | R34: 07:20:00 | S34: 00:00:00 | T34: 00:00:00 | Z34: 00:00:00 | AA34: 00:00:00 | AB34: 00:00:00 | AC34: 00:00:00 | AD34: 00:00:00 | AE34: 00:00:00
A35: 4 | B35: 2024-02-28 | C35: 2024-02-28 | K35: 00:00:00 | L35: 00:00:00 | M35: 00:00:00 | N35: 00:00:00 | O35: 00:00:00 | P35: 07:20:00 | R35: 07:20:00 | S35: 00:00:00 | T35: 00:00:00 | Z35: 00:00:00 | AA35: 00:00:00 | AB35: 00:00:00 | AC35: 00:00:00 | AD35: 00:00:00 | AE35: 00:00:00
A36: 5 | B36: =IF(B35="","",IF(B35>=W117,"",B35+1)) -> 2024-02-29 | C36: 2024-02-29 | K36: 00:00:00 | L36: 00:00:00 | M36: 00:00:00 | N36: 00:00:00 | O36: 00:00:00 | P36: 07:20:00 | R36: 07:20:00 | S36: 00:00:00 | T36: 00:00:00 | Z36: 00:00:00 | AA36: 00:00:00 | AB36: 00:00:00 | AC36: 00:00:00 | AD36: 00:00:00 | AE36: 00:00:00
B37: =IF(B36="","",IF(B36>=W117,"",B36+1)) -> 
B38: =IF(B37="","",IF(B37>=W117,"",B37+1)) ->  | O38: =IF(B38="","",MOD((AA38-Z38)+(AC38-AB38)+(AE38-AD38),1)+M38) ->  | S38: =IF(B38="","",IF(AND(WEEKDAY(B38,1)=7,P38=0,D38<>"F"),MAX(0,O38-P38),IF(P38=0,0,MAX(0,O38-P38)))) ->  | T38: =IF(B38="","",IF(AND(WEEKDAY(B38,1)=7,P38=0,D38="F"),0,IF(P38=0,O38,0))) -> 
B39: Início | C39: Término | E39: fer | F39: dom | G39: mês | H39: dias úteis | K39: repousos | L39: dsr | M39: Total: | N39: =SUM(N8:N38) -> 0 | O39: =SUM(O8:O38) -> 0 | P39: Total: | Q39: =SUM(Q8:Q38) -> 0 | R39: =SUM(R7:R38) -> 28.71388889 | S39: =SUM(S7:S38) -> 0 | T39: =SUM(T8:T38) -> 0
B40: =B8 -> 2024-02-01 | C40: =MAX(B8:B38) -> 2024-02-29 | E40: =COUNTIF(C8:C38,"feriado") -> 0 | F40: =SUMPRODUCT((WEEKDAY(ROW(INDIRECT($B40&":"&$C40)))=1)*(COUNTIF(fer,ROW(INDIRECT($B40&":"&$C40)))=0)) -> 4 | G40: =C40-B40+1 -> 29 | H40: =G40-K40 -> 25 | K40: =E40+F40 -> 4 | L40: =H40&"/"&K40 -> 25/4 | M40: Decimal: | N40: =N39*24 -> 0.00 | O40: =O39*24 -> 0.00 | P40: Decimal: | Q40: =Q39*24 -> 0.00 | R40: 689.13 | S40: =S39*24 -> 0.00 | T40: =T39*24 -> 0.00
B41: =IF(dia_f="","",DATE(YEAR(W117),MONTH(W117),1)) ->  | C41: =IF(dia_f="","",EOMONTH(B41,0)) ->  | E41: =IF(B41="","",SUMPRODUCT(((WEEKDAY(fer)>1))*(fer>=B41)*(fer<=C41))) ->  | F41: =IF(B41="","",SUMPRODUCT((WEEKDAY(ROW(INDIRECT($B41&":"&$C41)))=1)*1)) ->  | G41: =IF(B41="","",DAY(C41)) ->  | H41: =IF(B41="","",SUMPRODUCT((WEEKDAY(ROW(INDIRECT(B41&":"&C41)))>1)*(COUNTIF(fer,ROW(INDIRECT(B41&":"&C41)))=0))) ->  | K41: =IF(B41="","",E41+F41) ->  | L41: =IF(B41="","",H41&"/"&K41) ->  | M41: Dsr: | N41: =N40/$H$40*$K$40 -> 0.00
M42: =IF(B41="","","Dsr mês:") ->  | N42: =IF(B41="","",N40/H41*K41) ->  | O42: =IF(B41="","","Dsr mês:") ->  | S42: =IF(B41="","",S40/$H$41*$K$41) ->  | T42: =IF(B41="","",T40/$H$41*$K$41) -> 
W116: =B8 -> 2024-02-01 | X116: Data de início:
W117: =IF(DAY(B8)=1,EOMONTH(B8,0),DATE(YEAR(B8),MONTH(B8)+1,dia_f)) -> 2024-02-29 | X117: Data final:
D119: Meses | F119: Anos
D120: 1 | F120: 2020
D121: 2 | F121: 2021
D122: 3 | F122: 2022
D123: 4 | F123: 2023
D124: 5 | F124: 2024
D125: 6 | F125: 2025
D126: 7 | F126: 2026
D127: 8 | F127: 2027
D128: 9 | F128: 2028
D129: 10 | F129: 2029
D130: 11 | F130: 2030
D131: 12 | F131: 2031

Sheet Março
E1: =CHOOSE(MONTH(W117),"Janeiro","Fevereiro","Março","Abril","Maio","Junho","Julho","Agosto","Setembro","Outubro","Novembro","Dezembro") -> Março
B5: Empregado : | D5: =Outubro!D5 -> Alexandre José de Souza Silva | I5: Setor : | O5: Unidade :
B6: Data | C6: Dia Semana | D6: Folgas | E6: Entrada | F6: Saída | G6: Entrada | H6: Saída | I6: Entrada | J6: Saída | K6: Horas Diurnas | L6: H. Not. s/ red. | M6: Hora Ficta | N6: Adicional Noturno | O6: H. Trab. | P6: H. Normais | Q6: Ausências In-justificadas | R6: Compen-sadas | S6: H. Extras | T6: HE 100% | W6: JORNADA CONTRATUAL | Z6: CARTÃO PONTO ESPELHO
B7: Saldo anterior | R7: =IF(Fevereiro!W32="Horas Compensadas",Fevereiro!X32,0) -> 28.71388889 | S7: =IF(Fevereiro!W32="Horas Extras",Fevereiro!X32,0) -> 0 | Z7: Entrada | AA7: Saída | AB7: Entrada | AC7: Saída | AD7: Entrada | AE7: Saída
A8: =IF(B8="","",IF(C8<>"feriado",WEEKDAY(B8),8)) -> 6 | B8: =EDATE(inicio,5) -> 2024-03-01 | C8: =IF(B8="","",IF(COUNTIF(fer,B8)>0,"feriado",B8)) -> 2024-03-01 | K8: =IF(B8="","",ROUND(O8-N8,5)) -> 00:00:00 | L8: =IF(B8="","",IF(AND(E8="",F8=""),0,MAX(ININOT,MIN(FIMNOT+1,AA8+(Z8>AA8)))-MAX(ININOT,Z8)+(MIN(FIMNOT,AA8+(Z8>AA8))-MIN(FIMNOT,Z8)))+IF(AND(G8="",H8=""),0,MAX(ININOT,MIN(FIMNOT+1,AC8+(AB8>AC8)))-MAX(ININOT,AB8)+(MIN(FIMNOT,AC8+(AB8>AC8))-MIN(FIMNOT,AB8)))+IF(AND(I8="",J8=""),0,MAX(ININOT,MIN(FIMNOT+1,AE8+(AD8>AE8)))-MAX(ININOT,AD8)+(MIN(FIMNOT,AE8+(AD8>AE8))-MIN(FIMNOT,AD8)))) -> 00:00:00 | M8: =IF(B8="","",(L8/7*8)-L8) -> 00:00:00 | N8: =IF(B8="","",L8+M8) -> 00:00:00 | O8: =IF(B8="","",MOD((AA8-Z8)+(AC8-AB8)+(AE8-AD8),1)+M8) -> 00:00:00 | P8: =IF(B8="","",IF(D8="F",$X$16,VLOOKUP(A8,jornada,3))) -> 07:20:00 | Q8: =IF(B8="","",IF(AND(D8="A",P8>O8),P8-O8,"")) ->  | R8: =IF(B8="","",IF(AND(O8>0,D8="F"),"",IF(D8="A","",IF(O8<P8,P8-O8,"")))) -> 07:20:00 | S8: =SE(B8="";"";SE(E(DIA.DA.SEMANA(B8;1)=7;P8=0;D8<>"F");MÁXIMO(0;O8-P8);SE(P8=0;0;MÁXIMO(0;O8-P8)))) | T8: =SE(B8="";"";SE(E(DIA.DA.SEMANA(B8;1)=7;P8=0;D8<>"F");0;SE(P8=0;O8;0))) | V8: 1 | W8: domingo | X8: 07:20:00 | Z8: =IF(B8="","",IF($E8="",0,TIME(INT(E8/100),MOD(E8,100),0))) -> 00:00:00 | AA8: =IF(B8="","",IF($F8="",0,TIME(INT(F8/100),MOD(F8,100),0))) -> 00:00:00 | AB8: =IF(B8="","",IF($G8="",0,TIME(INT(G8/100),MOD(G8,100),0))) -> 00:00:00 | AC8: =IF(B8="","",IF($H8="",0,TIME(INT(H8/100),MOD(H8,100),0))) -> 00:00:00 | AD8: =IF(B8="","",IF($I8="",0,TIME(INT(I8/100),MOD(I8,100),0))) -> 00:00:00 | AE8: =IF(B8="","",IF($J8="",0,TIME(INT(J8/100),MOD(J8,100),0))) -> 00:00:00
A9: =IF(B9="","",IF(C9<>"feriado",WEEKDAY(B9),8)) -> 7 | B9: =B8+1 -> 2024-03-02 | C9: =IF(B9="","",IF(COUNTIF(fer,B9)>0,"feriado",B9)) -> 2024-03-02 | K9: =IF(B9="","",ROUND(O9-N9,5)) -> 00:00:00 | L9: =IF(B9="","",IF(AND(E9="",F9=""),0,MAX(ININOT,MIN(FIMNOT+1,AA9+(Z9>AA9)))-MAX(ININOT,Z9)+(MIN(FIMNOT,AA9+(Z9>AA9))-MIN(FIMNOT,Z9)))+IF(AND(G9="",H9=""),0,MAX(ININOT,MIN(FIMNOT+1,AC9+(AB9>AC9)))-MAX(ININOT,AB9)+(MIN(FIMNOT,AC9+(AB9>AC9))-MIN(FIMNOT,AB9)))+IF(AND(I9="",J9=""),0,MAX(ININOT,MIN(FIMNOT+1,AE9+(AD9>AE9)))-MAX(ININOT,AD9)+(MIN(FIMNOT,AE9+(AD9>AE9))-MIN(FIMNOT,AD9)))) -> 00:00:00 | M9: =IF(B9="","",(L9/7*8)-L9) -> 00:00:00 | N9: =IF(B9="","",L9+M9) -> 00:00:00 | O9: =IF(B9="","",MOD((AA9-Z9)+(AC9-AB9)+(AE9-AD9),1)+M9) -> 00:00:00 | P9: 07:20:00 | Q9: =IF(B9="","",IF(AND(D9="A",P9>O9),P9-O9,"")) ->  | R9: =IF(B9="","",IF(AND(O9>0,D9="F"),"",IF(D9="A","",IF(O9<P9,P9-O9,"")))) -> 07:20:00 | S9: =IF(B9="","",IF(AND(WEEKDAY(B9,1)=7,P9=0,D9<>"F"),MAX(0,O9-P9),IF(P9=0,0,MAX(0,O9-P9)))) -> 00:00:00 | T9: =IF(B9="","",IF(AND(WEEKDAY(B9,1)=7,P9=0,D9<>"F"),0,IF(P9=0,O9,0))) -> 00:00:00 | V9: 2 | W9: Segunda-feira | X9: 07:20:00 | Z9: =IF(B9="","",IF($E9="",0,TIME(INT(E9/100),MOD(E9,100),0))) -> 00:00:00 | AA9: =IF(B9="","",IF($F9="",0,TIME(INT(F9/100),MOD(F9,100),0))) -> 00:00:00 | AB9: =IF(B9="","",IF($G9="",0,TIME(INT(G9/100),MOD(G9,100),0))) -> 00:00:00 | AC9: =IF(B9="","",IF($H9="",0,TIME(INT(H9/100),MOD(H9,100),0))) -> 00:00:00 | AD9: =IF(B9="","",IF($I9="",0,TIME(INT(I9/100),MOD(I9,100),0))) -> 00:00:00 | AE9: =IF(B9="","",IF($J9="",0,TIME(INT(J9/100),MOD(J9,100),0))) -> 00:00:00
A10: 1 | B10: =B9+1 -> 2024-03-03 | C10: 2024-03-03 | K10: 00:00:00 | L10: 00:00:00 | M10: 00:00:00 | N10: 00:00:00 | O10: 00:00:00 | P10: 07:20:00 | R10: 07:20:00 | S10: 00:00:00 | T10: 00:00:00 | V10: 3 | W10: Terça-feira | X10: 07:20:00 | Z10: 00:00:00 | AA10: 00:00:00 | AB10: 00:00:00 | AC10: 00:00:00 | AD10: 00:00:00 | AE10: 00:00:00
A11: 2 | B11: =B10+1 -> 2024-03-04 | C11: 2024-03-04 | K11: 00:00:00 | L11: 00:00:00 | M11: 00:00:00 | N11: 00:00:00 | O11: 00:00:00 | P11: 07:20:00 | R11: 07:20:00 | S11: 00:00:00 | T11: 00:00:00 | V11: 4 | W11: Quarta-feira | X11: 07:20:00 | Z11: 00:00:00 | AA11: 00:00:00 | AB11: 00:00:00 | AC11: 00:00:00 | AD11: 00:00:00 | AE11: 00:00:00
A12: 3 | B12: =B11+1 -> 2024-03-05 | C12: 2024-03-05 | K12: 00:00:00 | L12: 00:00:00 | M12: 00:00:00 | N12: 00:00:00 | O12: 00:00:00 | P12: 07:20:00 | R12: 07:20:00 | S12: 00:00:00 | T12: 00:00:00 | V12: 5 | W12: Quinta-feira | X12: 07:20:00 | Z12: 00:00:00 | AA12: 00:00:00 | AB12: 00:00:00 | AC12: 00:00:00 | AD12: 00:00:00 | AE12: 00:00:00
A13: 4 | B13: =B12+1 -> 2024-03-06 | C13: 2024-03-06 | K13: 00:00:00 | L13: 00:00:00 | M13: 00:00:00 | N13: 00:00:00 | O13: 00:00:00 | P13: 07:20:00 | R13: 07:20:00 | S13: 00:00:00 | T13: 00:00:00 | V13: 6 | W13: Sexta-feira | X13: 07:20:00 | Z13: 00:00:00 | AA13: 00:00:00 | AB13: 00:00:00 | AC13: 00:00:00 | AD13: 00:00:00 | AE13: 00:00:00
A14: 5 | B14: 2024-03-07 | C14: 2024-03-07 | K14: 00:00:00 | L14: 00:00:00 | M14: 00:00:00 | N14: 00:00:00 | O14: 00:00:00 | P14: 07:20:00 | R14: 07:20:00 | S14: 00:00:00 | T14: 00:00:00 | V14: 7 | W14: Sábado | X14: 07:20:00 | Z14: 00:00:00 | AA14: 00:00:00 | AB14: 00:00:00 | AC14: 00:00:00 | AD14: 00:00:00 | AE14: 00:00:00
A15: 6 | B15: 2024-03-08 | C15: 2024-03-08 | K15: 00:00:00 | L15: 00:00:00 | M15: 00:00:00 | N15: 00:00:00 | O15: 00:00:00 | P15: 07:20:00 | R15: 07:20:00 | S15: 00:00:00 | T15: 00:00:00 | V15: 8 | W15: Feriados | X15: 07:20:00 | Z15: 00:00:00 | AA15: 00:00:00 | AB15: 00:00:00 | AC15: 00:00:00 | AD15: 00:00:00 | AE15: 00:00:00
A16: 7 | B16: 2024-03-09 | C16: 2024-03-09 | K16: 00:00:00 | L16: 00:00:00 | M16: 00:00:00 | N16: 00:00:00 | O16: 00:00:00 | P16: 07:20:00 | R16: 07:20:00 | S16: 00:00:00 | T16: 00:00:00 | W16: Folgas | X16: 00:00:00 | Z16: 00:00:00 | AA16: 00:00:00 | AB16: 00:00:00 | AC16: 00:00:00 | AD16: 00:00:00 | AE16: 00:00:00
A17: 1 | B17: 2024-03-10 | C17: 2024-03-10 | K17: 00:00:00 | L17: 00:00:00 | M17: 00:00:00 | N17: 00:00:00 | O17: 00:00:00 | P17: 07:20:00 | R17: 07:20:00 | S17: 00:00:00 | T17: 00:00:00 | W17: HORÁRIO NOTURNO | Z17: 00:00:00 | AA17: 00:00:00 | AB17: 00:00:00 | AC17: 00:00:00 | AD17: 00:00:00 | AE17: 00:00:00
A18: 2 | B18: 2024-03-11 | C18: 2024-03-11 | K18: 00:00:00 | L18: 00:00:00 | M18: 00:00:00 | N18: 00:00:00 | O18: 00:00:00 | P18: 07:20:00 | R18: 07:20:00 | S18: 00:00:00 | T18: 00:00:00 | W18: Início | X18: =ININOT -> 22:00:00 | Z18: 00:00:00 | AA18: 00:00:00 | AB18: 00:00:00 | AC18: 00:00:00 | AD18: 00:00:00 | AE18: 00:00:00
A19: 3 | B19: 2024-03-12 | C19: 2024-03-12 | K19: 00:00:00 | L19: 00:00:00 | M19: 00:00:00 | N19: 00:00:00 | O19: 00:00:00 | P19: 07:20:00 | R19: 07:20:00 | S19: 00:00:00 | T19: 00:00:00 | W19: Término | X19: =FIMNOT -> 05:00:00 | Z19: 00:00:00 | AA19: 00:00:00 | AB19: 00:00:00 | AC19: 00:00:00 | AD19: 00:00:00 | AE19: 00:00:00
A20: 4 | B20: 2024-03-13 | C20: 2024-03-13 | K20: 00:00:00 | L20: 00:00:00 | M20: 00:00:00 | N20: 00:00:00 | O20: 00:00:00 | P20: 07:20:00 | R20: 07:20:00 | S20: 00:00:00 | T20: 00:00:00 | W20: FECHAMENTO DO PONTO | Z20: 00:00:00 | AA20: 00:00:00 | AB20: 00:00:00 | AC20: 00:00:00 | AD20: 00:00:00 | AE20: 00:00:00
A21: 5 | B21: 2024-03-14 | C21: 2024-03-14 | K21: 00:00:00 | L21: 00:00:00 | M21: 00:00:00 | N21: 00:00:00 | O21: 00:00:00 | P21: 07:20:00 | R21: 07:20:00 | S21: 00:00:00 | T21: 00:00:00 | W21: Dia do fechamento do ponto: | X21: =IF(dia_f="","",dia_f) ->  | Z21: 00:00:00 | AA21: 00:00:00 | AB21: 00:00:00 | AC21: 00:00:00 | AD21: 00:00:00 | AE21: 00:00:00
A22: 6 | B22: 2024-03-15 | C22: 2024-03-15 | K22: 00:00:00 | L22: 00:00:00 | M22: 00:00:00 | N22: 00:00:00 | O22: 00:00:00 | P22: 07:20:00 | R22: 07:20:00 | S22: 00:00:00 | T22: 00:00:00 | Z22: 00:00:00 | AA22: 00:00:00 | AB22: 00:00:00 | AC22: 00:00:00 | AD22: 00:00:00 | AE22: 00:00:00
A23: 7 | B23: 2024-03-16 | C23: 2024-03-16 | K23: 00:00:00 | L23: 00:00:00 | M23: 00:00:00 | N23: 00:00:00 | O23: 00:00:00 | P23: 07:20:00 | R23: 07:20:00 | S23: 00:00:00 | T23: 00:00:00 | Z23: 00:00:00 | AA23: 00:00:00 | AB23: 00:00:00 | AC23: 00:00:00 | AD23: 00:00:00 | AE23: 00:00:00
A24: 1 | B24: 2024-03-17 | C24: 2024-03-17 | K24: 00:00:00 | L24: 00:00:00 | M24: 00:00:00 | N24: 00:00:00 | O24: 00:00:00 | P24: 07:20:00 | R24: 07:20:00 | S24: 00:00:00 | T24: 00:00:00 | Z24: 00:00:00 | AA24: 00:00:00 | AB24: 00:00:00 | AC24: 00:00:00 | AD24: 00:00:00 | AE24: 00:00:00
A25: 2 | B25: 2024-03-18 | C25: 2024-03-18 | K25: 00:00:00 | L25: 00:00:00 | M25: 00:00:00 | N25: 00:00:00 | O25: 00:00:00 | P25: 07:20:00 | R25: 07:20:00 | S25: 00:00:00 | T25: 00:00:00 | W25: Adicional Noturno: | X25: =N39 -> 00:00:00 | Z25: 00:00:00 | AA25: 00:00:00 | AB25: 00:00:00 | AC25: 00:00:00 | AD25: 00:00:00 | AE25: 00:00:00
A26: 3 | B26: 2024-03-19 | C26: 2024-03-19 | K26: 00:00:00 | L26: 00:00:00 | M26: 00:00:00 | N26: 00:00:00 | O26: 00:00:00 | P26: 07:20:00 | R26: 07:20:00 | S26: 00:00:00 | T26: 00:00:00 | W26: Horas Trabalhadas: | X26: =O39 -> 0 | Z26: 00:00:00 | AA26: 00:00:00 | AB26: 00:00:00 | AC26: 00:00:00 | AD26: 00:00:00 | AE26: 00:00:00
A27: 4 | B27: 2024-03-20 | C27: 2024-03-20 | K27: 00:00:00 | L27: 00:00:00 | M27: 00:00:00 | N27: 00:00:00 | O27: 00:00:00 | P27: 07:20:00 | R27: 07:20:00 | S27: 00:00:00 | T27: 00:00:00 | W27: Ausências Injustificadas: | X27: =Q39 -> 0 | Z27: 00:00:00 | AA27: 00:00:00 | AB27: 00:00:00 | AC27: 00:00:00 | AD27: 00:00:00 | AE27: 00:00:00
A28: 5 | B28: 2024-03-21 | C28: 2024-03-21 | K28: 00:00:00 | L28: 00:00:00 | M28: 00:00:00 | N28: 00:00:00 | O28: 00:00:00 | P28: 07:20:00 | R28: 07:20:00 | S28: 00:00:00 | T28: 00:00:00 | W28: Horas Compensadas: | X28: =R39 -> 38.18611111 | Z28: 00:00:00 | AA28: 00:00:00 | AB28: 00:00:00 | AC28: 00:00:00 | AD28: 00:00:00 | AE28: 00:00:00
A29: 6 | B29: 2024-03-22 | C29: 2024-03-22 | K29: 00:00:00 | L29: 00:00:00 | M29: 00:00:00 | N29: 00:00:00 | O29: 00:00:00 | P29: 07:20:00 | R29: 07:20:00 | S29: 00:00:00 | T29: 00:00:00 | W29: Horas Extras: | X29: =S39 -> 0 | Z29: 00:00:00 | AA29: 00:00:00 | AB29: 00:00:00 | AC29: 00:00:00 | AD29: 00:00:00 | AE29: 00:00:00
A30: 7 | B30: 2024-03-23 | C30: 2024-03-23 | K30: 00:00:00 | L30: 00:00:00 | M30: 00:00:00 | N30: 00:00:00 | O30: 00:00:00 | P30: 07:20:00 | R30: 07:20:00 | S30: 00:00:00 | T30: 00:00:00 | W30: Folgas Trabalhadas: | X30: =T39 -> 0 | Z30: 00:00:00 | AA30: 00:00:00 | AB30: 00:00:00 | AC30: 00:00:00 | AD30: 00:00:00 | AE30: 00:00:00
A31: 1 | B31: 2024-03-24 | C31: =IF(B31="","",IF(COUNTIF(fer,B31)>0,"feriado",B31)) -> 2024-03-24 | K31: 00:00:00 | L31: 00:00:00 | M31: 00:00:00 | N31: 00:00:00 | O31: 00:00:00 | P31: 07:20:00 | R31: 07:20:00 | S31: 00:00:00 | T31: 00:00:00 | Z31: 00:00:00 | AA31: 00:00:00 | AB31: 00:00:00 | AC31: 00:00:00 | AD31: 00:00:00 | AE31: 00:00:00
A32: 2 | B32: 2024-03-25 | C32: 2024-03-25 | K32: 00:00:00 | L32: 00:00:00 | M32: 00:00:00 | N32: 00:00:00 | O32: 00:00:00 | P32: 07:20:00 | R32: 07:20:00 | S32: 00:00:00 | T32: 00:00:00 | W32: =IF(X28-X29=0,0,(IF(X28-X29<0,"Horas Extras","Horas Compensadas"))) -> Horas Compensadas | X32: =IF(X28-X29<0,(X28*-1)-(X29*-1),X28-X29) -> 38.18611111 | Z32: 00:00:00 | AA32: 00:00:00 | AB32: 00:00:00 | AC32: 00:00:00 | AD32: 00:00:00 | AE32: 00:00:00
A33: 3 | B33: 2024-03-26 | C33: 2024-03-26 | K33: 00:00:00 | L33: 00:00:00 | M33: 00:00:00 | N33: 00:00:00 | O33: 00:00:00 | P33: 07:20:00 | R33: 07:20:00 | S33: 00:00:00 | T33: 00:00:00 | Z33: 00:00:00 | AA33: 00:00:00 | AB33: 00:00:00 | AC33: 00:00:00 | AD33: 00:00:00 | AE33: 00:00:00
A34: 4 | B34: 2024-03-27 | C34: 2024-03-27 | K34: 00:00:00 | L34: 00:00:00 | M34: 00:00:00 | N34: 00:00:00 | O34: 00:00:00 | P34: 07:20:00 | R34: 07:20:00 | S34: 00:00:00 | T34: 00:00:00 | Z34: 00:00:00 | AA34: 00:00:00 | AB34: 00:00:00 | AC34: 00:00:00 | AD34: 00:00:00 | AE34: 00:00:00
A35: 5 | B35: 2024-03-28 | C35: 2024-03-28 | K35: 00:00:00 | L35: 00:00:00 | M35: 00:00:00 | N35: 00:00:00 | O35: 00:00:00 | P35: 07:20:00 | R35: 07:20:00 | S35: 00:00:00 | T35: 00:00:00 | Z35: 00:00:00 | AA35: 00:00:00 | AB35: 00:00:00 | AC35: 00:00:00 | AD35: 00:00:00 | AE35: 00:00:00
A36: 8 | B36: =IF(B35="","",IF(B35>=W117,"",B35+1)) -> 2024-03-29 | C36: feriado | K36: 00:00:00 | L36: 00:00:00 | M36: 00:00:00 | N36: 00:00:00 | O36: 00:00:00 | P36: 07:20:00 | R36: 07:20:00 | S36: 00:00:00 | T36: 00:00:00 | Z36: 00:00:00 | AA36: 00:00:00 | AB36: 00:00:00 | AC36: 00:00:00 | AD36: 00:00:00 | AE36: 00:00:00
A37: 7 | B37: =IF(B36="","",IF(B36>=W117,"",B36+1)) -> 2024-03-30 | C37: 2024-03-30 | K37: 00:00:00 | L37: 00:00:00 | M37: 00:00:00 | N37: 00:00:00 | O37: 00:00:00 | P37: 07:20:00 | R37: 07:20:00 | S37: 00:00:00 | T37: 00:00:00 | Z37: 00:00:00 | AA37: 00:00:00 | AB37: 00:00:00 | AC37: 00:00:00 | AD37: 00:00:00 | AE37: 00:00:00
A38: 1 | B38: =IF(B37="","",IF(B37>=W117,"",B37+1)) -> 2024-03-31 | C38: 2024-03-31 | K38: 00:00:00 | L38: 00:00:00 | M38: 00:00:00 | N38: 00:00:00 | O38: =IF(B38="","",MOD((AA38-Z38)+(AC38-AB38)+(AE38-AD38),1)+M38) -> 00:00:00 | P38: 07:20:00 | R38: 07:20:00 | S38: =IF(B38="","",IF(AND(WEEKDAY(B38,1)=7,P38=0,D38<>"F"),MAX(0,O38-P38),IF(P38=0,0,MAX(0,O38-P38)))) -> 00:00:00 | T38: =IF(B38="","",IF(AND(WEEKDAY(B38,1)=7,P38=0,D38="F"),0,IF(P38=0,O38,0))) -> 00:00:00 | Z38: 00:00:00 | AA38: 00:00:00 | AB38: 00:00:00 | AC38: 00:00:00 | AD38: 00:00:00 | AE38: 00:00:00
B39: Início | C39: Término | E39: fer | F39: dom | G39: mês | H39: dias úteis | K39: repousos | L39: dsr | M39: Total: | N39: =SUM(N8:N38) -> 0 | O39: =SUM(O8:O38) -> 0 | P39: Total: | Q39: =SUM(Q8:Q38) -> 0 | R39: =SUM(R7:R38) -> 38.18611111 | S39: =SUM(S7:S38) -> 0 | T39: =SUM(T8:T38) -> 0
B40: =B8 -> 2024-03-01 | C40: =MAX(B8:B38) -> 2024-03-31 | E40: =COUNTIF(C8:C38,"feriado") -> 1 | F40: =SUMPRODUCT((WEEKDAY(ROW(INDIRECT($B40&":"&$C40)))=1)*(COUNTIF(fer,ROW(INDIRECT($B40&":"&$C40)))=0)) -> 5 | G40: =C40-B40+1 -> 31 | H40: =G40-K40 -> 25 | K40: =E40+F40 -> 6 | L40: =H40&"/"&K40 -> 25/6 | M40: Decimal: | N40: =N39*24 -> 0.00 | O40: =O39*24 -> 0.00 | P40: Decimal: | Q40: =Q39*24 -> 0.00 | R40: 916.47 | S40: =S39*24 -> 0.00 | T40: =T39*24 -> 0.00
B41: =IF(dia_f="","",DATE(YEAR(W117),MONTH(W117),1)) ->  | C41: =IF(dia_f="","",EOMONTH(B41,0)) ->  | E41: =IF(B41="","",SUMPRODUCT(((WEEKDAY(fer)>1))*(fer>=B41)*(fer<=C41))) ->  | F41: =IF(B41="","",SUMPRODUCT((WEEKDAY(ROW(INDIRECT($B41&":"&$C41)))=1)*1)) ->  | G41: =IF(B41="","",DAY(C41)) ->  | H41: =IF(B41="","",SUMPRODUCT((WEEKDAY(ROW(INDIRECT(B41&":"&C41)))>1)*(COUNTIF(fer,ROW(INDIRECT(B41&":"&C41)))=0))) ->  | K41: =IF(B41="","",E41+F41) ->  | L41: =IF(B41="","",H41&"/"&K41) ->  | M41: Dsr: | N41: =N40/$H$40*$K$40 -> 0.00
M42: =IF(B41="","","Dsr mês:") ->  | N42: =IF(B41="","",N40/H41*K41) ->  | O42: =IF(B41="","","Dsr mês:") ->  | S42: =IF(B41="","",S40/$H$41*$K$41) ->  | T42: =IF(B41="","",T40/$H$41*$K$41) -> 
W116: =B8 -> 2024-03-01 | X116: Data de início:
W117: =IF(DAY(B8)=1,EOMONTH(B8,0),DATE(YEAR(B8),MONTH(B8)+1,dia_f)) -> 2024-03-31 | X117: Data final:
D119: Meses | F119: Anos
D120: 1 | F120: 2020
D121: 2 | F121: 2021
D122: 3 | F122: 2022
D123: 4 | F123: 2023
D124: 5 | F124: 2024
D125: 6 | F125: 2025
D126: 7 | F126: 2026
D127: 8 | F127: 2027
D128: 9 | F128: 2028
D129: 10 | F129: 2029
D130: 11 | F130: 2030
D131: 12 | F131: 2031

Sheet Feriados
A1: Ano | C1: Páscoa | D1: Horário Noturno
B2: =ano_p -> 2023 | C2: =ROUND(DATE($B$2,4,MOD(234-11*MOD($B$2,19),30))/7,)*7-6 -> 2023-04-09 | D2: Início: | E2: =ININOT -> 22:00:00
D3: Fim: | E3: =FIMNOT -> 05:00:00
A4: Feriados Nacionais, Municipais e Estadual
A5: Feriados Nacionais | B5: x | C5: Ano Novo | D5: =IF($B$5="X",DATE($B$2-1,1,1),DATE(1905,1,1)) -> 2022-01-01 | E5: =IF($B$5="X",DATE($B$2,1,1),DATE(1905,1,1)) -> 2023-01-01 | F5: =IF($B$5="X",DATE($B$2+1,1,1),DATE(1905,1,1)) -> 2024-01-01 | G5: =ROUND(DATE($B$2-1,4,MOD(234-11*MOD($B$2-1,19),30))/7,)*7-6 -> 2022-04-17 | V5: 1 | W5: 1 | X5: =DATE(1905,1,1) -> 1905-01-01
B6: x | C6: Tiradentes | D6: =IF($B$6="X",DATE($B$2-1,4,21),DATE(1905,1,1)) -> 2022-04-21 | E6: =IF($B$6="X",DATE($B$2,4,21),DATE(1905,1,1)) -> 2023-04-21 | F6: =IF($B$6="X",DATE($B$2+1,4,21),DATE(1905,1,1)) -> 2024-04-21 | G6: =ROUND(DATE($B$2+1,4,MOD(234-11*MOD($B$2+1,19),30))/7,)*7-6 -> 2024-03-31 | V6: 2 | W6: 2
B7: x | C7: Dia do Trabalho | D7: =IF($B$7="X",DATE($B$2-1,5,1),DATE(1905,1,1)) -> 2022-05-01 | E7: =IF($B$7="X",DATE($B$2,5,1),DATE(1905,1,1)) -> 2023-05-01 | F7: =IF($B$7="X",DATE($B$2+1,5,1),DATE(1905,1,1)) -> 2024-05-01 | V7: 3 | W7: 3
B8: x | C8: Independência | D8: =IF($B$8="X",DATE($B$2-1,9,7),DATE(1905,1,1)) -> 2022-09-07 | E8: =IF($B$8="X",DATE($B$2,9,7),DATE(1905,1,1)) -> 2023-09-07 | F8: =IF($B$8="X",DATE($B$2+1,9,7),DATE(1905,1,1)) -> 2024-09-07 | V8: 4 | W8: 4
B9: x | C9: Padroeira do Brasil | D9: =IF($B$9="X",DATE($B$2-1,10,12),DATE(1905,1,1)) -> 2022-10-12 | E9: =IF($B$9="X",DATE($B$2,10,12),DATE(1905,1,1)) -> 2023-10-12 | F9: =IF($B$9="X",DATE($B$2+1,10,12),DATE(1905,1,1)) -> 2024-10-12 | V9: 5 | W9: 5
B10: x | C10: Finados | D10: =IF($B$10="X",DATE($B$2-1,11,2),DATE(1905,1,1)) -> 2022-11-02 | E10: =IF($B$10="X",DATE($B$2,11,2),DATE(1905,1,1)) -> 2023-11-02 | F10: =IF($B$10="X",DATE($B$2+1,11,2),DATE(1905,1,1)) -> 2024-11-02 | V10: 6 | W10: 6
B11: x | C11: Proclamação da República | D11: =IF($B$11="X",DATE($B$2-1,11,15),DATE(1905,1,1)) -> 2022-11-15 | E11: =IF($B$11="X",DATE($B$2,11,15),DATE(1905,1,1)) -> 2023-11-15 | F11: =IF($B$11="X",DATE($B$2+1,11,15),DATE(1905,1,1)) -> 2024-11-15 | V11: 7 | W11: 7
B12: x | C12: Zumbi e Consciência Negra | D12: =IF($B$12="X",DATE($B$2-1,11,20),DATE(1905,1,1)) -> 2022-11-20 | E12: =IF($B$12="X",DATE($B$2,11,20),DATE(1905,1,1)) -> 2023-11-20 | F12: =IF($B$12="X",DATE($B$2+1,11,20),DATE(1905,1,1)) -> 2024-11-20
B13: x | C13: Natal | D13: =IF($B$13="X",DATE($B$2-1,12,25),DATE(1905,1,1)) -> 2022-12-25 | E13: =IF($B$13="X",DATE($B$2,12,25),DATE(1905,1,1)) -> 2023-12-25 | F13: =IF($B$13="X",DATE($B$2+1,12,25),DATE(1905,1,1)) -> 2024-12-25 | V13: 8 | W13: 8
A14: Móveis | B14: x | C14: Sexta-Feira Santa | D14: =IF($B$14="X",$G$5-2,DATE(1905,1,1)) -> 2022-04-15 | E14: =IF($B$14="X",páscoa-2,DATE(1905,1,1)) -> 2023-04-07 | F14: =IF($B$14="X",$G$6-2,DATE(1905,1,1)) -> 2024-03-29 | V14: 9 | W14: 9
B15: x | C15: Corpus Christi | D15: =IF($B$15="X",$G$5+60,DATE(1905,1,1)) -> 2022-06-16 | E15: =IF($B$15="X",páscoa+60,DATE(1905,1,1)) -> 2023-06-08 | F15: =IF($B$15="X",$G$6+60,DATE(1905,1,1)) -> 2024-05-30 | V15: 10 | W15: 10
C16: Terça-Feira de Carnaval | D16: =IF($B$16="X",$G$5-47,DATE(1905,1,1)) -> 1905-01-01 | E16: =IF($B$16="X",páscoa-47,DATE(1905,1,1)) -> 1905-01-01 | F16: =IF($B$16="X",$G$6-47,DATE(1905,1,1)) -> 1905-01-01 | G16: DIA | H16: MÊS | V16: 11 | W16: 11
A17: Fixos | B17: x | C17: Feriado 1 | D17: =IF($B$17="X",DATE($B$2-1,$H$17,$G$17),DATE(1905,1,1)) -> 2022-06-10 | E17: =IF($B$17="X",DATE($B$2,$H$17,$G$17),DATE(1905,1,1)) -> 2023-06-10 | F17: =IF($B$17="X",DATE($B$2+1,$H$17,$G$17),DATE(1905,1,1)) -> 2024-06-10 | G17: 10 | H17: 6 | V17: 12 | W17: 12
B18: x | C18: Feriado 2 | D18: =IF($B$18="X",DATE($B$2-1,H18,G18),DATE(1905,1,1)) -> 2022-06-24 | E18: =IF($B$18="X",DATE($B$2,H18,G18),DATE(1905,1,1)) -> 2023-06-24 | F18: =IF($B$18="X",DATE($B$2+1,H18,G18),DATE(1905,1,1)) -> 2024-06-24 | G18: 24 | H18: 6 | W18: 13
C19: Feriado 3 | D19: =IF($B$19="X",DATE($B$2-1,H19,G19),DATE(1905,1,1)) -> 1905-01-01 | E19: =IF($B$19="X",DATE($B$2,H19,G19),DATE(1905,1,1)) -> 1905-01-01 | F19: =IF($B$19="X",DATE($B$2,H19,G19),DATE(1905,1,1)) -> 1905-01-01 | G19: 5 | H19: 8 | W19: 14
C20: Feriado 4 | D20: =IF($B$20="X",DATE($B$2-1,H20,G20),DATE(1905,1,1)) -> 1905-01-01 | E20: =IF($B$20="X",DATE($B$2,H20,G20),DATE(1905,1,1)) -> 1905-01-01 | F20: =IF($B$20="X",DATE($B$2+1,H20,G20),DATE(1905,1,1)) -> 1905-01-01 | G20: 10 | H20: 5 | W20: 15
W21: 16
W22: 17
W23: 18
W24: 19
W25: 20
W26: 21
W27: 22
W28: 23
W29: 24
W30: 25
W31: 26
W32: 27
W33: 28
W34: 29
W35: 30
W36: 31
